Cogmind - Beta 16 @@@ ROGUE MODE // 2025.11.21 @ 23:02:53 Player: Runia Result: Establishing 0b11! Performance ------------- Evolutions (9) 4500 Regions Visited (35) 7000 Robots Destroyed (581) 2905 Value Destroyed (28609) 28609 Prototype IDs (380) 7600 Alien Tech Used (11) 2200 Bonus (58278) 58278 TOTAL SCORE: 111092 Bonus ------- High Alert Combat Kills 5045 Follower Combat Kills 1769 Forged Quantum Companion 2000 Network Hubs Disabled 200 Registered with UFD 300 Met Optimus in HQ 500 Met Zhirov 300 Built Enhanced Grunts 300 Met R17 at Cetus 500 Found Hidden Lab 3000 Met R17 at Research 2000 Met Optimus at Protoforge 1000 Recovered Sigix Corpse 2000 Destroyed MAIN.C Guards 500 Met MAIN.C 5000 Destroyed MAIN.C Shell 5000 Destroyed MAIN.C 10000 Met Architect 300 Destroyed A5 500 Destroyed A4 700 Destroyed A3 800 Destroyed Architect 15000 Win 3000 Friendly Fire -1436 Cogmind --------- Core Integrity 378/1600 Matter 270/300 Energy 333/340 System Corruption 2% Temperature Cool (10) Movement Hovering (34) Location 0b11 Command Parts ------- > --- POWER (2) -------- Concept Zero-point Core Concept Zero-point Core > --- PROPULSION (8) --- Combat Antigrav System Cooled Linear Gravjet Combat Linear Gravjet Combat Linear Gravjet Concept Combat Aerolev Unit Concept Combat Aerolev Unit Concept Gyrokinetic System Concept Gyrokinetic System > --- UTILITY (13) ----- Concept Antigrav Storage Unit Experimental Melee Analysis Suite Concept Melee Reflex Suite Concept Projectile Intercept Suite Concept Weapon Articulator Experimental Core Analyzer Experimental Armor Integrity Analyzer Femtoactuators Experimental Phase Shifter Centrium Linked Plating Experimental Powered Armor Graphene Brace AEGIS Remote Shield > --- WEAPON (3) ------- Modified Sigix Sheargun Modified Sigix Sheargun Superquantum Companion (fused) > --- INVENTORY (25) --- Experimental Antimatter Reactor Cooled Antigrav System Cooled Antigrav System Cooled Antigrav System Advanced Energy Well (500) Experimental Energy Well (600) Concept Chromion Battery (800) Concept Chromion Battery (800) Concept NT7 Matterbank (750) ST Field Compressor Experimental Core Analyzer Experimental Armor Integrity Analyzer Mini Quantum Capacitor Experimental Reaction Control System Heavy Regenerative Plating Deep Network Scanner Deep Network Scanner Architect God Chip D High-powered Transdimensional Reconstructor Concept Lightning Penetrator Concept Disintegration Ray (40) Concept Plasma Driver Sigix Corpse Peak State ------------ > --- POWER ------------ Experimental Antimatter Reactor Concept Zero-point Core > --- PROPULSION ------- Gravjet Array Gravjet Array Gravjet Array Concept Combat Aerolev Unit Concept Combat Aerolev Unit > --- UTILITY ---------- Concept Antigrav Storage Unit Experimental Melee Analysis Suite Concept Melee Reflex Suite Concept Projectile Intercept Suite Experimental Core Analyzer Experimental Armor Integrity Analyzer Femtoactuators Concept Reaction Jets Concept Cloak Mesh Concept Cloak Mesh Concept RG22 Armor Graphene Brace AEGIS Remote Shield > --- WEAPON ----------- Superquantum Companion Sigix Broadsword > --- INVENTORY -------- Concept Zero-point Core Experimental Antigrav System Concept Combat Aerolev Unit Concept Gyrokinetic System Concept Gyrokinetic System Concept Chromion Battery Concept Chromion Battery Concept NT7 Matterbank Concept Weapon Articulator Mini Quantum Capacitor Femtoactuators Concept Reaction Jets Improved Phase Shifter Improved Phase Shifter Concept RG22 Armor Experimental Remote Shield Concept Antimissile System Transdimensional Reconstructor Concept Lightning Penetrator Concept Disintegration Ray Concept Plasma Driver Concept Plasma Driver [Rating: 308] Favorites ----------- Power Light Nuclear Core Engine Improved Ion Engine Power Core Light Nuclear Core Reactor Micro Antimatter Reactor Propulsion Armored Treads Treads Armored Treads Leg Carbon-fiber Leg Wheel Wheel Hover Unit Gravjet Array Flight Unit Cooled Nuclear Pulse Thruster Utility High-capacity Storage Unit Device AEGIS Remote Shield Storage High-capacity Storage Unit Processor Advanced Melee Analysis Suite Hackware Advanced Hacking Suite Protection Hardened Medium Armor Plating Weapon Companion Sword Energy Gun KN-7UR's Autopenetrator Energy Cannon Advanced Beam Cannon Ballistic Gun Enhanced Autogun Ballistic Cannon Enhanced Hardcell Cannon Launcher Improved Grenade Launcher Special Weapon Guided Remote Datajack Impact Weapon Heavy Flail Slashing Weapon Companion Sword Build | -11 -10 -10 -9 -9 -9 -8 -8 -8 -8 -8 -6 -6 -6 -6 -6 -6 -6 -5 -5 -5 -5 -5 -5 -4 -4 -4 -4 -3 -3 -2 -2 -2 -1 -1 -1 ------- Run | Yrd Mat Min Mat Min Exi Min Mat Sto Rec Scr Fac Was Fac Ext Cet Arc Hub Fac Was Fac Upp Upp Zhi Pro Fac Arm Lab Res Qua Res Tes Frg Acc Com Ac0 Slots Evolved 18 | . . . 2 . . . 2 . . . 4 . . . . . . 2 . . . . . . 2 . . 2 . 2 . . 2 . . Power 1 | . . . . . . . . . . . . . . . . . . 1 . . . . . . . . . . . . . . . . . Propulsion 6 | . . . 1 . . . 1 . . . 2 . . . . . . . . . . . . . . . . 1 . 1 . . . . . Utility 11 | . . . 1 . . . 1 . . . 2 . . . . . . 1 . . . . . . 2 . . 1 . 1 . . 2 . . Weapon . | . . . . . . . . . . . . . . . . . . . . . . . . . . . . . . . . . . . . Parts Attached 370 | . 16 8 15 6 . . 34 15 2 2 27 3 37 11 3 5 . 15 1 12 . . 4 1 7 13 3 14 8 1 3 55 4 16 29 Power 46 | . 2 1 1 1 . . 4 1 . . 4 . 4 2 . . . 4 . 2 . . 1 . 1 2 . 2 2 1 . 10 . 1 . Engine 9 | . 1 . 1 1 . . 2 . . . 1 . 1 1 . . . 1 . . . . . . . . . . . . . . . . . Core 17 | . 1 1 . . . . 2 1 . . 3 . 3 1 . . . 1 . 1 . . . . 1 . . . . . . 1 . 1 . Reactor 20 | . . . . . . . . . . . . . . . . . . 2 . 1 . . 1 . . 2 . 2 2 1 . 9 . . . Propulsion 111 | . 5 2 6 1 . . 16 5 . . 12 . 18 . . . . 2 . 1 . . 2 . 3 3 . 8 1 . 1 15 . . 10 Treads 32 | . 3 . 5 1 . . 13 5 . . 4 . 1 . . . . . . . . . . . . . . . . . . . . . . Leg 12 | . . . . . . . . . . . 5 . 7 . . . . . . . . . . . . . . . . . . . . . . Wheel 11 | . 2 2 1 . . . 2 . . . 3 . 1 . . . . . . . . . . . . . . . . . . . . . . Hover 15 | . . . . . . . . . . . . . . . . . . . . . . . . . . . . . . . . 5 . . 10 Flight 41 | . . . . . . . 1 . . . . . 9 . . . . 2 . 1 . . 2 . 3 3 . 8 1 . 1 10 . . . Utility 149 | . 4 1 4 2 . . 4 4 1 . 9 2 12 9 . 5 . 9 . 6 . . 1 1 3 7 2 4 2 . 2 24 2 13 16 Device 62 | . 2 1 1 1 . . . 1 . . 3 1 4 4 . 3 . 1 . 1 . . . 1 . 1 1 2 2 . 1 15 2 7 7 Storage 8 | . 2 . . . . . . . . . . . 1 1 . . . . . 1 . . . . . . . . . . . 1 . 2 . Processor 23 | . . . . . . . 1 1 . . 1 . 1 3 . . . 2 . 2 . . . . . 2 . . . . 1 6 . 2 1 Hackware 18 | . . . . . . . 1 . . . 2 . 3 . . . . 4 . 2 . . . . 3 2 1 . . . . . . . . Protection 38 | . . . 3 1 . . 2 2 1 . 3 1 3 1 . 2 . 2 . . . . 1 . . 2 . 2 . . . 2 . 2 8 Artifact . | . . . . . . . . . . . . . . . . . . . . . . . . . . . . . . . . . . . . Weapon 64 | . 5 4 4 2 . . 10 5 1 2 2 1 3 . 3 . . . 1 3 . . . . . 1 1 . 3 . . 6 2 2 3 Energy Gun 8 | . 1 . . . . . . 1 1 . 1 . . . . . . . . . . . . . . . . . . . . 2 . . 2 Energy Cannon 15 | . . 2 2 . . . 1 1 . . . . 2 . . . . . 1 1 . . . . . 1 . . 1 . . 1 2 . . Ballistic Gun 20 | . 3 2 2 . . . 5 2 . . . 1 . . 2 . . . . 1 . . . . . . . . . . . 2 . . . Ballistic Cannon 4 | . . . . . . . . . . . . . . . 1 . . . . . . . . . . . . . . . . . . 2 1 Launcher 9 | . 1 . . 2 . . 2 1 . . 1 . 1 . . . . . . . . . . . . . . . . . . 1 . . . Special Weapon 3 | . . . . . . . . . . 1 . . . . . . . . . 1 . . . . . . 1 . . . . . . . . Impact Weapon 2 | . . . . . . . 2 . . . . . . . . . . . . . . . . . . . . . . . . . . . . Slashing Weapon 3 | . . . . . . . . . . 1 . . . . . . . . . . . . . . . . . . 2 . . . . . . Piercing Weapon . | . . . . . . . . . . . . . . . . . . . . . . . . . . . . . . . . . . . . Special Melee Weapon . | . . . . . . . . . . . . . . . . . . . . . . . . . . . . . . . . . . . . Unidentified Prototypes 25 | . . . 1 . . . 3 1 1 1 1 . 3 1 1 . . . . . . . 1 . . 1 2 . 3 . . 1 . . 4 Corrupted Parts 4 | . . . . . . . . . . . . . . . . . . . . . . . . . . . . . . . . 1 . 2 1 System Corruption 17 | . . . . . . . . . . . . . . . . . . . . . . . . . . . . . . . . 1 . 15 1 Parts Lost 64 | . 2 2 3 . . . 5 . 1 . 14 2 5 3 . . . . . . . 2 . . 1 4 . 1 3 . . 5 . 3 8 Power 6 | . . . 1 . . . . . . . . . 1 . . . . . . . . 1 . . . . . 1 1 . . 1 . . . Propulsion 26 | . 1 1 2 . . . 3 . . . 8 . 4 . . . . . . . . 1 . . 1 2 . . . . . 1 . . 2 Utility 25 | . . . . . . . 2 . 1 . 6 1 . 3 . . . . . . . . . . . 2 . . 1 . . 2 . 2 5 Weapon 7 | . 1 1 . . . . . . . . . 1 . . . . . . . . . . . . . . . . 1 . . 1 . 1 1 Highest Loss Streak 4 | . 2 2 2 . . . 2 . 1 . 4 2 2 2 . . . . . . . 2 . . 1 3 . 1 3 . . 2 . 2 2 To Critical Strikes 1 | . . . . . . . . . . . 1 . . . . . . . . . . . . . . . . . . . . . . . . Average Backups 16 | . 12 19 19 19 19 20 19 20 19 18 18 17 13 4 4 5 4 4 5 4 6 7 9 10 8 8 9 7 7 8 8 13 24 23 22 Power 1 | . 1 2 1 1 1 1 1 2 2 1 1 2 . . . . . . 1 . 1 . . . . . 1 1 . . . . 1 1 1 Propulsion 2 | . 4 5 3 4 4 4 3 3 3 2 1 2 1 1 1 1 1 . . . . . 1 2 2 1 1 . 1 1 . 1 4 5 5 Utility 7 | . 3 7 6 5 5 6 7 9 9 9 9 7 6 1 2 3 3 2 3 3 4 5 6 6 3 4 5 3 3 2 2 6 14 11 12 Weapon 4 | . 2 5 7 8 9 9 6 5 5 4 4 4 2 1 1 . . . 1 . 1 1 1 1 1 1 2 1 1 1 2 2 3 3 3 Tool/Special . | . . . . . . . . . . . . . . . . . . . . . . . . . . . . . . . . . . . . Unused Backups 98 | . 6 1 6 1 . 2 5 2 . 15 12 . 8 . . . 1 2 . 1 . . . . 1 3 2 2 1 . . 11 . 3 13 Power 11 | . 1 1 . . . . 1 . . 2 2 . . . . . . . . . . . . . 1 . . 1 . . . 2 . . . Propulsion 16 | . 2 . . . . . . . . 3 2 . . . . . . . . . . . . . . 2 . . . . . 2 . 2 3 Utility 46 | . 2 . 2 . . . . . . 6 6 . 6 . . . 1 2 . 1 . . . . . 1 1 1 . . . 7 . 1 9 Weapon 22 | . 1 . 4 1 . 2 4 1 . 4 2 . 1 . . . . . . . . . . . . . 1 . 1 . . . . . . Tool/Special 3 | . . . . . . . . 1 . . . . 1 . . . . . . . . . . . . . . . . . . . . . 1 Average Slot Usage (%) 93 | . 95 100 99 100 100 100 97 99 95 99 92 83 94 92 93 98 100 91 94 92 94 90 88 88 84 86 86 88 87 81 82 85 84 79 91 Engine 2 | . 12 4 5 11 11 11 6 . . . . 3 2 . . . . 2 . . . . . . . . . . . . . . . . . Core 4 | . 1 9 4 . . . 2 9 9 9 5 . 3 5 6 6 6 2 . . 5 3 . . . 4 5 . . . . 1 3 6 7 Reactor 1 | . . . . . . . . . . . . . . . . . . 5 11 10 5 7 10 5 5 5 5 7 8 8 8 6 3 . . Treads 16 | . 14 14 28 33 33 33 34 35 36 36 22 9 3 . . . . . . . . . . . . . . . . . . . . . . Leg 1 | . . . . . . . . . . . 9 3 13 . . . . . . . . . . . . . . . . . . . . . . Wheel 1 | . 13 14 4 . . . 1 . . . 3 20 6 . . . . . . . . . . . . . . . . . . . . . . Hover 4 | . . . . . . . . . . . . . . . . . . . . . . . . . . . . . . . . 9 19 19 27 Flight 7 | . . . . . . . . . . . . . 11 40 40 40 40 33 35 33 35 33 32 35 27 24 25 23 22 20 20 11 . . . Device 9 | . 10 14 11 11 11 11 4 . 5 . 4 10 9 3 . 8 6 7 11 11 11 9 5 5 7 7 7 9 11 18 20 15 22 19 17 Storage 6 | . 14 14 11 11 11 11 9 9 9 9 6 6 4 2 . . . . . . 5 5 5 5 5 5 5 4 4 4 4 4 3 3 3 Processor 10 | . . . . . . . 8 9 9 9 6 6 12 13 20 20 20 19 23 17 23 23 23 23 21 16 20 14 13 12 12 14 15 18 19 Hackware 3 | . . . . . . . 2 8 . . 6 6 6 6 6 6 6 5 . 3 . . . . 5 10 10 9 9 8 8 8 7 1 . Protection 7 | . . . 10 11 11 11 9 8 10 18 12 3 4 6 6 2 6 5 5 4 . . 2 5 5 4 . 5 4 . . 2 . 2 7 Energy Gun 1 | . 13 . . . . . . . 1 6 . 3 2 5 . . . . . . . . . . . . . . . . . 1 . . 2 Energy Cannon 3 | . . 10 17 21 22 22 5 5 . . . . . . . . 6 . . . . . . . . . . 2 2 . . 1 . . . Ballistic Gun 3 | . 13 17 4 . . . 11 9 9 . 2 1 1 . 4 5 . . . . . . . . . . . . . . . 1 . . . Impact Weapon 1 | . . . . . . . 1 3 5 5 2 . 1 . . . . . . . . . . . . . . . . . . . . . . Slashing Weapon 3 | . . . . . . . . . . 6 6 6 6 6 6 6 6 5 5 5 5 5 5 5 5 5 5 4 5 8 7 5 6 4 3 Peak Build Rating 308 | . 14 14 20 21 21 21 32 39 44 45 61 64 81 82 75 81 78 103 107 109 98 99 105 96 113 125 138 174 183 190 205 284 304 308 297 Average Rating 106 | . 9 13 17 20 21 20 28 36 37 42 53 51 66 74 73 78 77 89 101 100 97 95 97 95 106 111 121 158 169 187 200 231 303 284 283 On Entrance 94 | 6 6 12 14 19 21 21 21 31 39 33 41 61 45 80 71 74 77 78 101 101 98 98 89 96 96 101 112 138 172 183 190 203 278 304 282 Avg Prop Armor Cover (%) 7 | . 12 11 12 . . . 20 . 6 . 13 13 7 1 1 1 . 1 . . . . . . . . . . . . . 3 . . . Naked Turns . | . . . . . . . . . . . . . . . . . . . . . . . . . . . . . . . . . . . . Heaviest Build 122 | 12 52 52 60 60 60 60 72 65 68 71 74 75 65 28 23 28 31 37 34 34 28 30 35 36 41 42 41 64 57 47 47 100 101 111 122 Greatest Support 142 | 20 10 16 60 60 60 60 83 86 84 84 104 32 80 33 27 33 33 34 34 35 35 35 35 37 45 42 42 83 83 74 92 142 122 122 128 Greatest Overweight (x) 6 | . 5 5 3 . . . 6 . 1 . 2 2 2 . . 1 . 1 . . . . . . 1 . . 1 . . . 1 . . . Average Overweight (x) . | . 3 3 . . . . . . . . . 1 . . . . . . . . . . . . . . . . . . . . . . . Largest Inventory Capacity 25 | . 20 20 20 20 20 20 20 20 20 20 20 20 20 5 5 5 5 5 5 10 10 10 10 10 10 10 10 10 10 10 10 25 25 25 25 Average Capacity 17 | . 17 20 20 20 20 20 20 20 20 20 20 20 15 5 5 5 5 5 5 5 10 10 10 10 10 10 10 10 10 10 10 16 25 25 25 Most Carried 25 | . 20 20 20 20 20 20 20 20 20 20 20 20 20 5 5 5 5 5 5 6 7 8 10 10 10 10 10 10 10 10 10 25 25 25 25 Average Carried 17 | . 12 19 19 19 19 19 19 20 19 19 19 19 15 4 4 4 4 4 4 4 6 6 9 10 8 8 9 9 9 9 9 14 24 23 23 Final Capacity 25 | 8 20 20 20 20 20 20 20 20 20 20 20 20 5 5 5 5 5 5 5 10 10 10 10 10 10 10 10 10 10 10 10 25 25 25 25 Final Carried 25 | 6 20 20 20 19 20 20 20 20 20 20 20 20 5 5 5 5 5 5 5 6 7 8 10 10 10 10 10 10 10 10 10 25 25 24 24 Class Distribution -------------------- 22% | Hacker-Sprinter 22% | Scavenger-Mutant 20% | Commander-Mutant 12% | Mutant 7% | Sprinter 6% | Scavenger-Sprinter Dominant Class ---------------- Mutant | -10/Materials Scavenger-Mutant | -10/Mines Scavenger-Mutant | -9/Materials Scavenger-Mutant | -9/Mines Scavenger-Mutant | -9/Exiles Scavenger-Mutant | -8/Mines Scavenger-Mutant | -8/Materials Mutant | -8/Storage Commander-Mutant | -8/Recycling Commander-Mutant | -8/Scraptown Scavenger-Mutant | -6/Factory Scavenger-Mutant | -6/Waste Scavenger-Mutant | -6/Factory Sprinter | -6/Extension Sprinter | -6/Cetus Commander-Sprinter | -6/Archives Commander-Sprinter | -6/Hub_04(d) Hacker-Sprinter | -5/Factory Machinist-Sprinter | -5/Waste Machinist-Sprinter | -5/Factory Machinist-Sprinter | -5/Upper Caves Machinist-Sprinter | -5/Upper Caves Sprinter | -5/Zhirov Sprinter | -4/Proximity Caves Sprinter | -4/Factory Hacker-Sprinter | -4/Armory Hacker-Sprinter | -4/Lab Hacker-Sprinter | -3/Research Hacker-Sprinter | -3/Quarantine Hacker-Sprinter | -2/Research Hacker-Sprinter | -2/Testing Hacker-Sprinter | -2/Protoforge Hacker-Sprinter | -1/Access Scavenger-Sprinter | -1/Command Scavenger-Sprinter | -1/Access_0 Resources | -11 -10 -10 -9 -9 -9 -8 -8 -8 -8 -8 -6 -6 -6 -6 -6 -6 -6 -5 -5 -5 -5 -5 -5 -4 -4 -4 -4 -3 -3 -2 -2 -2 -1 -1 -1 ----------- Run | Yrd Mat Min Mat Min Exi Min Mat Sto Rec Scr Fac Was Fac Ext Cet Arc Hub Fac Was Fac Upp Upp Zhi Pro Fac Arm Lab Res Qua Res Tes Frg Acc Com Ac0 Matter Collected 10700 | 200 425 342 345 200 . . 1065 576 193 60 462 . 901 245 194 131 20 192 . 361 20 5 57 74 100 270 . 335 184 73 115 2539 135 490 391 Remotely . | . . . . . . . . . . . . . . . . . . . . . . . . . . . . . . . . . . . . Salvage Created 33163 | . 750 490 1250 786 . 151 1560 628 663 295 1536 . 1761 980 340 152 . 1057 . 910 131 . 269 22 394 1087 . 1938 602 327 784 5364 378 3780 4778 Parts 1549 | . 62 36 71 39 . 11 113 31 20 6 56 . 74 37 9 11 . 42 . 34 3 . 3 . 14 53 . 75 45 17 32 256 20 133 246 Haulers Intercepted 33 | . 2 . 3 . . . 5 5 . . 1 . 1 1 . . . 2 . 2 . . . . 2 . . 7 . 1 . . 1 . . Recyclers Shooed 16 | . 4 . 3 . . . 2 . . . . . 5 1 . . . . . 1 . . . . . . . . . . . . . . . Parts Field Recycled . | . . . . . . . . . . . . . . . . . . . . . . . . . . . . . . . . . . . . Retrieved Matter . | . . . . . . . . . . . . . . . . . . . . . . . . . . . . . . . . . . . . Parts Self-Destructed 6 | . . . . . . . . . . . . . . . . . . . . . 3 . 3 . . . . . . . . . . . . Prevented . | . . . . . . . . . . . . . . . . . . . . . . . . . . . . . . . . . . . . Parts Restored 11 | . . . . . . . . . . . . . . . . . . . . . . . . . . . . . . . . 11 . . . Faulty 11 | . . . . . . . . . . . . . . . . . . . . . . . . . . . . . . . . 11 . . . Kills | -11 -10 -10 -9 -9 -9 -8 -8 -8 -8 -8 -6 -6 -6 -6 -6 -6 -6 -5 -5 -5 -5 -5 -5 -4 -4 -4 -4 -3 -3 -2 -2 -2 -1 -1 -1 ------- Run | Yrd Mat Min Mat Min Exi Min Mat Sto Rec Scr Fac Was Fac Ext Cet Arc Hub Fac Was Fac Upp Upp Zhi Pro Fac Arm Lab Res Qua Res Tes Frg Acc Com Ac0 Combat Hostiles Destroyed 402 | . 22 17 19 22 . 2 23 6 4 . 29 . 28 10 5 . . 3 . 4 2 . . 1 . 17 . 7 8 2 11 75 2 34 49 Melee 179 | . . . . . . . 1 . . . 20 . 14 5 . . . 3 . 2 2 . . . . 12 . 5 6 2 7 31 1 27 41 Guns 94 | . 15 . 6 . . . 17 3 4 . 2 . 1 4 2 . . . . . . . . . . . . . . . . 40 . . . Cannons 45 | . . 3 11 9 . 1 3 3 . . . . . . 3 . . . . . . . . 1 . 5 . 1 2 . 1 . 1 1 . AOE 58 | . 7 14 2 12 . . 2 . . . 6 . 13 . . . . . . 2 . . . . . . . . . . . . . . . Classes Destroyed 30 | . 8 1 2 4 . 1 1 . 1 1 . . . 1 . . . . . . . . . . . 2 . . . . . 8 . . . Worker 37 | . 1 1 3 3 . . 4 2 . . 6 . 7 . . . . 5 . 1 . . . . 1 . . 1 . . 1 . 1 . . Builder 24 | . 2 1 1 2 . . 4 . . . . . 3 3 . . . 1 . 1 . . . . 1 . . 2 1 . . . 2 . . Tunneler 8 | . . . . 3 . 2 . . . . . . 1 1 . . . . . 1 . . . . . . . . . . . . . . . Hauler 33 | . 2 . 3 . . . 5 5 . . 1 . 1 1 . . . 2 . 2 . . . . 2 . . 7 . 1 . . 1 . . Recycler 33 | . . 1 4 3 . . 2 . 5 . 1 . 3 2 . . . 2 . 4 . . . . . . . 4 . . . . . 2 . Mechanic 2 | . . . . . . . 1 . . . . . . . . . . 1 . . . . . . . . . . . . . . . . . Operator 16 | . 1 . 1 . . . . 1 . . . . 2 . . 4 . . . . . . . . . . . 2 2 . . 2 . 1 . Drone 8 | . . . . . . . . . . . . . . . . . . . . . . . . . . . . . . . . 8 . . . Watcher 31 | . 2 . . . . . 4 . . . . . 1 . . . . 3 . 1 . . . . 4 3 . 3 . 1 1 . 1 7 . Swarmer 68 | . 9 9 4 3 . . 4 . . . 12 . 11 1 . . . . . . 2 . . 1 . . . 1 1 . 6 4 . . . Cutter 2 | . . . . . . . . . . . . . . . . . . . . . . . . . . . . . . . . . . 2 . Saboteur 5 | . . . . . . . . . . . . . . . . . . . . . . . . . . 4 . . . . . 1 . . . Grunt 113 | . 10 8 9 3 . . 10 1 . 4 9 . 11 4 . . . . . 2 . . . . . 8 . 3 3 . 5 6 2 15 . Brawler 4 | . . . 1 1 . . . . . . 1 . . . . . . . . . . . . . . . . . . . . 1 . . . Duelist 4 | . . . . 1 . . 1 . . . . . . . . . . . . . . . . . . 1 . . . . . . . 1 . Researcher 1 | . . . . . . . . . . . . . . . . . . . . . . . . . . . . . . . . 1 . . . Sentry 41 | . . . 5 . . . 6 5 1 . 3 . 2 2 . . . 2 . . . . . . . 1 . . . 1 . 11 . 2 . Demolisher 6 | . . . . 2 . . . . . 1 . . . . . . . . . . . . . . . . . . . . . . . 3 . Specialist 2 | . . . . . . . . . . . . . . . . . . . . . . . . . . 1 . . 1 . . . . . . Hunter 22 | . . . . . . 2 2 . . . 2 . 2 . . . . 1 . . . . . . . . . 1 . . . 10 . 2 . Programmer 30 | . . . . . . . . . 3 . 2 . 2 1 . . . . . 2 . . . . . 2 . 2 3 1 . 9 . 3 . Behemoth 2 | . . . . . . . . . . . . . . 2 . . . . . . . . . . . . . . . . . . . . . Cetus Guard 5 | . . . . . . . . . . . . . . . 5 . . . . . . . . . . . . . . . . . . . . M Guard 2 | . . . . . . . . . . . . . . . . . . . . . . . . . . . . . . . . . . 2 . Enhanced Grunt 33 | . . . . . . . . . . . . . . . . . . 1 . . . . . . . . . . . . . . . . 32 Enhanced Sentry 2 | . . . . . . . . . . . . . . . . . . . . . . . . . . . . . . . . . . . 2 Enhanced Hunter 8 | . . . . . . . . . . . . . . . . . . . . . . . . . . . . . . . . . . . 8 Decapitator 7 | . . . . . . . . . . . . . . . . . . . . . . . . . . . . . . . . 7 . . . Immortal 2 | . . . . . . . . . . . . . . . . . . . . . . . . . . . . . . . . 2 . . . Combat Programmer 2 | . . . . . . . . . . . . . . . . . . . . . . . . . . . . . . . . . . 2 . Striker 3 | . . . . . . . . . . . . . . . . . . . . . . . . . . . . . . . . 3 . . . Executioner 6 | . . . . . . . . . . . . . . . . . . . . . . . . . . . . . . . . 6 . . . Alpha 7 2 | . . . . . . . . . . . . . . . . . . . . . . . . . . . . . . . . 2 . . . V-Series 4 | . . . . . . . . . . . . . . . . . . . . . . . . . . . . . . . . 4 . . . Subdweller 3 | . 3 . . . . . . . . . . . . . . . . . . . . . . . . . . . . . . . . . . Explorer 1 | . . . . . . . . . . 1 . . . . . . . . . . . . . . . . . . . . . . . . . Scrapoid 2 | . . . . . . . . . . . . . . . . . . . . . . . . . . . . . . . . 2 . . . Decomposer 1 | . . . . . . . . . . . . . . . . . . . . . 1 . . . . . . . . . . . . . . Packrat 1 | . . . . . . . . . . . . . . . . . . . . . 1 . . . . . . . . . . . . . . Assembled 12 | . . . . 12 . . . . . . . . . . . . . . . . . . . . . . . . . . . . . . . Best Kill Streak 16 | . 7 5 11 10 . 1 6 2 3 . 5 . 11 4 3 1 . 6 . 5 2 . . 1 3 6 . 5 3 3 3 16 3 12 6 Combat Bots Only 16 | . 5 5 4 10 . 1 3 2 2 . 5 . 6 3 3 . . 1 . 2 2 . . 1 . 6 . 2 3 1 3 16 1 11 6 Max Kills in Single Turn 5 | . 4 3 2 3 . 1 4 1 2 2 2 . 3 2 2 1 . 1 . 5 1 . . 1 1 1 . 1 1 1 1 2 1 2 2 Gunslinging 1 | . . . . . . . . . . . . . . . . . . . . . . . . . . . . . . . . 1 . . . Exploded 3 | . 3 3 1 3 . . 2 . . . 2 . 3 . . . . . . 2 . . . . . . . . . . . . . . . Melee 2 | . . . . . . . 1 . . . 2 . 1 1 . . . 1 . 1 1 . . . . 1 . 1 1 1 1 2 1 2 2 Uniques/NPCs Destroyed 10 | . . . . . . . . . . . . . . . 1 . . . . . . . . . . . . . . . . . . 2 7 A7 (-6/Cetus) MAIN.C Shell (-1/Command) MAIN.C (-1/Command) A8 (-1/Access_0) A6 (-1/Access_0) A5 (-1/Access_0) A2 (-1/Access_0) A4 (-1/Access_0) Architect (-1/Access_0) A3 (-1/Access_0) Combat | -11 -10 -10 -9 -9 -9 -8 -8 -8 -8 -8 -6 -6 -6 -6 -6 -6 -6 -5 -5 -5 -5 -5 -5 -4 -4 -4 -4 -3 -3 -2 -2 -2 -1 -1 -1 -------- Run | Yrd Mat Min Mat Min Exi Min Mat Sto Rec Scr Fac Was Fac Ext Cet Arc Hub Fac Was Fac Upp Upp Zhi Pro Fac Arm Lab Res Qua Res Tes Frg Acc Com Ac0 Hostile Shots Fired 2563 | . 87 23 71 42 . 8 118 37 48 . 315 2 158 130 10 3 . 20 . 29 8 21 . 20 75 46 . 40 135 12 24 267 22 172 620 Missed 1092 | . 29 8 14 16 . 2 37 6 8 . 88 . 66 61 5 2 . 10 . 17 3 10 . 10 45 21 . 19 77 8 16 140 13 70 291 Intercepted 25 | . . . . . . . . . . . . . . . . . . . . . . . . . . . . . . . . . . 25 . Deflected 26 | . . . . . . . . . . . . . . . . . . 1 . . 1 . . . 1 . . . . . . 2 . 12 9 Hits 1471 | . 58 15 57 26 . 6 81 31 40 . 227 2 92 69 5 1 . 10 . 12 5 11 . 10 30 25 . 21 58 4 8 127 9 102 329 Melee 38 | . . . 1 5 . . 4 . . . 7 2 . 1 . . . . . . . . . . . . . . . . . 7 . 3 8 Projectile 1433 | . 58 15 56 21 . 6 77 31 40 . 220 . 92 68 5 1 . 10 . 12 5 11 . 10 30 25 . 21 58 4 8 120 9 99 321 AOE 25 | . 2 . . 3 . . . . . . . . 1 . . . . . . . . . . . 6 . . . 2 . . 3 . 8 . Critical Strikes 92 | . 1 . 3 3 . . 5 . 3 . 9 . 2 1 . . . . . . . . . . 1 1 . 4 4 . . 12 . 4 39 Actively Blocked 41 | . . . . . . . . . . . 1 . . . . . . . . . . . . . . . . . . . . 12 . 4 24 Part Disruptions 5 | . . . . . . . . . 2 . 1 . . . . . . . . . . . . . 1 . . . . . . . . 1 . Damage Taken 25444 | . 779 247 727 530 . 101 1427 482 625 . 2800 92 1761 736 78 50 . 226 . 240 68 231 . 143 696 576 . 704 1613 100 240 2658 145 1807 5562 Core 4010 | . 128 44 77 48 . 15 95 29 64 . 234 . 312 134 . 22 . 88 . 98 18 58 . 39 187 106 . 119 357 20 23 620 21 140 914 Absorbed by Shields 7165 | . . . . . . . . . . . 158 . . 144 52 . . . . . . . . . . . . . . . . 1070 131 976 4634 Redirected to Shielding 258 | . . . . . . . . . . . 106 . . . . . . . . . . . . . . . . . 152 . . . . . . Ignored by Resistances 933 | . . . . . . . 58 . . . 85 . . . . . . . . . . . . . . . . . . . . 37 62 266 425 Regen/Repaired (Parts) 3062 | . 47 . . . . . . 181 . . . . 59 . . . . 205 . . . . . . 136 . . 261 160 72 257 551 126 849 158 Core Remaining (%) 54 | 100 . 31 . . . 65 . . . 65 . . . . . . 17 . . . . . . 69 . . 68 . 58 . . 49 . . 23 Volleys Fired 615 | . 70 22 60 54 . 12 81 43 24 1 16 . 19 20 21 5 . 5 . 3 . . . . 3 . . 7 4 . 2 108 1 31 3 Largest 2 | . 2 2 2 2 . 2 2 2 2 1 1 . 1 1 1 1 . 1 . 1 . . . . 1 . . 1 1 . 1 2 1 1 1 Hottest 145 | . 70 80 136 136 . 136 136 93 145 . 120 . 120 120 48 35 . 90 . 98 . . . . 98 . . 120 120 . 10 94 140 140 80 Shots Fired 994 | . 132 32 118 96 . 24 154 83 44 1 18 . 22 21 21 5 . 5 . 3 . . . . 3 . . 7 4 . 2 165 1 30 3 Gun 625 | . 127 12 44 . . . 130 44 44 . 14 . 7 20 9 5 . . . . . . . . . . . . . . . 145 . 23 1 Cannon 301 | . . 8 72 84 . 24 19 37 . . . . 1 1 12 . . 5 . 3 . . . . 3 . . 7 1 . . 14 1 7 2 Launcher 56 | . 5 12 2 12 . . 5 2 . . 4 . 14 . . . . . . . . . . . . . . . . . . . . . . Special 12 | . . . . . . . . . . 1 . . . . . . . . . . . . . . . . . . 3 . 2 6 . . . Kinetic 500 | . 65 12 44 . . . 130 44 34 . 9 . 1 . 21 5 . . . . . . . . . . . . . . . 132 . 1 2 Thermal 375 | . 62 8 72 84 . 24 19 37 10 . 5 . 7 21 . . . 5 . 3 . . . . 3 . . 7 1 . . . 1 6 . Explosive 56 | . 5 12 2 12 . . 5 2 . . 4 . 14 . . . . . . . . . . . . . . . . . . . . . . Electromagnetic 40 | . . . . . . . . . . . . . . . . . . . . . . . . . . . . . . . . 17 . 23 . Slashing 1 | . . . . . . . . . . . . . . . . . . . . . . . . . . . . . . . . . . . 1 Entropic 10 | . . . . . . . . . . . . . . . . . . . . . . . . . . . . . . . . 10 . . . Robot Hit Streak 25 | . 13 16 15 14 . 7 25 8 13 4 7 . 10 18 5 6 . . . . . . . . . . . . 2 . . 7 . 6 5 Robot Miss Streak 8 | . 3 2 4 3 . 2 5 3 2 . 2 . 8 3 1 1 . . . . . . . . . . . . . . . 6 . 2 . Penetration Max 3 | . . . . . . . 1 . 2 . . . . 1 1 . . . . . . . . . . . . . . . . 3 . 1 . Secondary Targets 8 | . . . . . . . . . 1 . . . . . . . . . . . . . . . . . . . . . . 7 . . . Max Gunslinging Chain 1 | . . . . . . . . . 1 . . . . . . . . . . . . . . . . . . . . . . 1 . . . Capacitor 33 | . . . . . . . . . . . . . . . . . . . . . . . . . . . . . . . . 10 . 23 . Autonomous 37 | . . . . . . . . . . . . . . . . . . 1 . 2 . . . 2 4 6 . 2 3 . 2 3 2 2 8 Shots Hit Robots 1549 | . 82 20 86 51 . 14 112 53 42 7 93 . 60 61 6 7 2 32 . 14 5 . 5 . 10 33 . 41 23 5 18 187 8 121 351 Core Hits 897 | . 55 24 36 47 . 5 70 18 20 3 47 . 68 38 8 3 . 14 . 10 3 . 2 1 8 21 . 20 11 4 8 129 5 64 155 Critical Kills 43 | . . . . . . 1 1 . . . . . . . 5 . . . . . . . . . . . . . . . . 36 . . . Critical Parts Destroyed 55 | . . . . . . . 1 1 . . 3 . . . 3 . . . . . . . . . . . . . . . . 47 . . . Critical Strikes 139 | . 2 . . . . 1 2 1 . . 3 . 2 4 8 1 . 2 . . . . . . . . . . . . . 87 . 6 20 Burn 2 | . 2 . . . . . . . . . . . . . . . . . . . . . . . . . . . . . . . . . . Meltdown 3 | . . . . . . 1 . . . . . . . . . . . . . . . . . . . . . . . . . 2 . . . Destroy 94 | . . . . . . . 2 . . . . . . . 8 1 . . . . . . . . . . . . . . . 83 . . . Smash 4 | . . . . . . . . 1 . . 3 . . . . . . . . . . . . . . . . . . . . . . . . Melee Attacks 1244 | . . . . . . . 7 12 5 6 101 2 80 56 1 4 2 49 . 29 5 . 5 2 25 53 8 78 55 11 26 114 16 132 360 Impact 46 | . . . . . . . 7 12 5 5 10 . 7 . . . . . . . . . . . . . . . . . . . . . . Slashing 1198 | . . . . . . . . . . 1 91 2 73 56 1 4 2 49 . 29 5 . 5 2 25 53 8 78 55 11 26 114 16 132 360 Piercing . | . . . . . . . . . . . . . . . . . . . . . . . . . . . . . . . . . . . . Sneak Attacks 151 | . . . . . . . . 2 2 6 7 . 10 9 1 4 1 17 . 8 2 . . . 4 9 . 18 1 1 2 10 5 10 22 Combat Hostiles 18 | . . . . . . . . . . . . . 1 1 . . . 2 . . . . . . . . . 3 . . 1 3 . 5 2 Follow-up Attacks 36 | . . . . . . . . . . 1 9 . 4 . . . . . . . . . . . . . . . . . . 6 . . 16 Martial Strikes 45 | . . . . . . . . . . . . . . . . . . . . . . . . . . . . . . . . 5 1 21 18 Damage Inflicted 92326 | . 1566 1022 1720 1951 . 284 2785 1182 1562 526 4234 . 4564 3285 468 529 154 3513 . 2205 356 . 745 167 1279 2980 . 4359 1860 579 1825 9979 1220 9693 25734 Guns 9734 | . 1021 118 538 . . . 1817 481 1048 . 185 . 166 902 216 86 . . . . . . . . . . . . . . . 2896 . 224 36 Cannons 6947 | . . 88 1014 1164 . 284 266 493 . . . . . 33 196 . . 85 . 173 . . . 167 332 510 . 174 270 . 150 507 178 169 694 Explosions 6052 | . 545 816 168 787 . . 620 40 . . 538 . 1750 . . . . . . 670 . . . . . . . . . . . . . 118 . Melee 69514 | . . . . . . . 58 168 459 526 3511 . 2648 2350 56 443 154 3428 . 1362 356 . 745 . 947 2470 . 4185 1590 579 1675 6576 1042 9182 25004 Ramming 79 | . . . . . . . 24 . 55 . . . . . . . . . . . . . . . . . . . . . . . . . . Kinetic 7358 | . 557 118 538 . . . 1817 481 477 . 139 . . . 412 86 . . . . . . . . . . . . . . . 2700 . . 33 Thermal 6545 | . 464 99 1014 1164 . 284 266 493 571 . 46 . 421 935 . . . . . 670 . . . . . . . . . . . . . 118 . Explosive 4998 | . 545 805 168 787 . . 620 40 . . 538 . 1495 . . . . . . . . . . . . . . . . . . . . . . Electromagnetic 484 | . . . . . . . . . . . . . . . . . . . . . . . . . . . . . . . . 260 . 224 . Impact 1697 | . . . . . . . 58 168 459 436 391 . 185 . . . . . . . . . . . . . . . . . . . . . . Slashing 67853 | . . . . . . . . . . 90 3120 . 2463 2350 56 443 154 3428 . 1362 356 . 745 . 947 2470 . 4185 1590 579 1675 6576 1042 9182 25040 Piercing . | . . . . . . . . . . . . . . . . . . . . . . . . . . . . . . . . . . . . Entropic 196 | . . . . . . . . . . . . . . . . . . . . . . . . . . . . . . . . 196 . . . Phasic 3116 | . . . . . . . . . . . . . . . . . . 85 . 173 . . . 167 332 510 . 174 270 . 150 247 178 169 661 Highest Corruption 22 | . . . . . . . . . 2 . 6 14 14 14 14 14 . 1 7 10 10 10 10 10 1 1 1 2 8 . 1 12 . 22 2 Average Corruption 6 | . . . . . . . . . 1 . 3 12 14 14 14 9 . 1 4 7 10 10 10 10 1 1 1 1 4 . 1 5 . 11 1 Corruption Purged 36 | . . . . . . . . . . . . . . . . 14 . . . . . . . . . . . . . . . . . 22 . Corruption Blocked . | . . . . . . . . . . . . . . . . . . . . . . . . . . . . . . . . . . . . Effects 339 | . . . . . . . . . 15 . 25 6 69 43 14 7 . 5 1 17 4 3 3 5 . 4 1 4 18 . 2 59 . 15 19 Message Errors 72 | . . . . . . . . . 2 . 6 2 13 12 3 1 . 1 . 6 . 1 1 2 . . . . 1 . . 13 . 2 6 Matter Fused 94 | . . . . . . . . . 4 . 8 1 13 7 5 3 . 2 . 4 1 1 . 2 . . 1 3 8 . 2 20 . 3 6 Heat Flow Errors 41 | . . . . . . . . . 1 . 4 1 10 4 1 3 . 1 . 1 . . . 1 . . . . 4 . . 7 . 1 2 Energy Discharges 35 | . . . . . . . . . 3 . 1 1 9 1 2 . . 1 . 1 . 1 1 . . 3 . . 1 . . 4 . 4 2 Parts Rejected 6 | . . . . . . . . . . . . . 2 2 . . . . . . . . . . . . . . 1 . . . . 1 . Parts Fused 8 | . . . . . . . . . . . . . 2 1 1 . . . . . . . . . . . . . 1 . . 3 . . . Data Loss (minor) 44 | . . . . . . . . . 1 . 3 . 11 8 . . . . 1 2 2 . 1 . . . . 1 2 . . 8 . 1 3 Data Loss (major) 14 | . . . . . . . . . 2 . 1 . 2 1 1 . . . . 2 1 . . . . 1 . . . . . 3 . . . Misfires 9 | . . . . . . . . . 2 . 2 . 3 2 . . . . . . . . . . . . . . . . . . . . . Alerts 6 | . . . . . . . . . . . . . 2 2 . . . . . . . . . . . . . . . . . 1 . 1 . Misdirections 8 | . . . . . . . . . . . . 1 2 2 1 . . . . 1 . . . . . . . . . . . . . 1 . Weapon Failures 2 | . . . . . . . . . . . . . . 1 . . . . . . . . . . . . . . . . . . . 1 . Overload Shots . | . . . . . . . . . . . . . . . . . . . . . . . . . . . . . . . . . . . . Overflow Damage 7890 | . 23 54 11 77 . . 51 128 162 78 362 . 474 219 . 153 23 790 . 356 165 . 409 . 47 220 . 768 235 . 342 893 246 578 1026 Projectiles 170 | . . . 11 54 . . . . . 14 . . . . . . . 50 . 40 . . . . . . . . . . . . 1 . . Explosions 268 | . 23 54 . 23 . . 51 . . . . . 42 . . . . . . 75 . . . . . . . . . . . . . . . Melee 7452 | . . . . . . . . 128 162 64 362 . 432 219 . 153 23 740 . 241 165 . 409 . 47 220 . 768 235 . 342 893 245 578 1026 Knockbacks 6 | . . . . . . . . 1 . 2 1 . 1 . 1 . . . . . . . . . . . . . . . . . . . . Impact 4 | . . . . . . . . 1 . 1 1 . 1 . . . . . . . . . . . . . . . . . . . . . . Kinetic 1 | . . . . . . . . . . . . . . . 1 . . . . . . . . . . . . . . . . . . . . Secondary 1 | . . . . . . . . . . 1 . . . . . . . . . . . . . . . . . . . . . . . . . Self-Inflicted Damage 358 | . . 59 . 24 . . 66 27 . . . . 182 . . . . . . . . . . . . . . . . . . . . . . Shots 11 | . . 3 . 1 . . 2 1 . . . . 4 . . . . . . . . . . . . . . . . . . . . . . Rammed 7 | . . . . . . . 2 . 5 . . . . . . . . . . . . . . . . . . . . . . . . . . Targets Rammed 8 | . . . . . . . 3 . 5 . . . . . . . . . . . . . . . . . . . . . . . . . . Kicked . | . . . . . . . . . . . . . . . . . . . . . . . . . . . . . . . . . . . . Crushed 1 | . . . . . . . 1 . . . . . . . . . . . . . . . . . . . . . . . . . . . . Highest Temperature 443 | . 84 1 186 102 . 45 78 214 443 . 211 239 384 328 118 198 36 154 . 96 . . 32 283 73 23 . 198 236 . 9 228 36 259 175 Average Temperature 62 | . 25 1 37 26 . 14 20 69 117 . 61 137 91 92 42 71 16 28 . 26 . . 19 79 15 11 . 80 106 . 6 111 27 89 105 Received Heat Transfer 3557 | . 246 93 306 164 . . 450 171 99 . 609 . 354 253 9 . . 27 . 9 . 63 . . 120 94 . 60 75 18 18 106 . 68 145 Effects 9 | . . . . . . . . . 2 . . . . 5 . . . . . . . . . . . . . . 2 . . . . . . Shutdowns 1 | . . . . . . . . . 1 . . . . . . . . . . . . . . . . . . . . . . . . . . Energy Bleed 1 | . . . . . . . . . 1 . . . . . . . . . . . . . . . . . . . . . . . . . . Interference 7 | . . . . . . . . . . . . . . 5 . . . . . . . . . . . . . . 2 . . . . . . Siege Activations . | . . . . . . . . . . . . . . . . . . . . . . . . . . . . . . . . . . . . Martial Activations . | . . . . . . . . . . . . . . . . . . . . . . . . . . . . . . . . . . . . Shielding Activations . | . . . . . . . . . . . . . . . . . . . . . . . . . . . . . . . . . . . . Robots Disrupted 7 | . . . . . . . . . . . . . . . . . . 1 . . . . . . . . . . . . . . . 1 5 Combat Hostiles 6 | . . . . . . . . . . . . . . . . . . . . . . . . . . . . . . . . . . 1 5 Robots Corrupted 8 | . . . . . . . . 1 . 2 1 . . . . . . . . . . . . . . . . . . . . 2 . 2 . Combat Hostiles 5 | . . . . . . . . . . . 1 . . . . . . . . . . . . . . . . . . . . 2 . 2 . Parts Fried 7 | . . . . . . . . 2 . . 1 . 1 . . . . . . . . . . . . . . . . . . 2 . 1 . Impact Corruptions 16 | . . . . . . . . 3 4 4 4 . 1 . . . . . . . . . . . . . . . . . . . . . . Robots Melted 5 | . . . . 1 . 1 . . . . . . . 1 . . . . . . . . . . . . . . . . . 2 . . . Combat Hostiles 5 | . . . . 1 . 1 . . . . . . . 1 . . . . . . . . . . . . . . . . . 2 . . . Parts Melted 29 | . 1 . 4 7 . 4 . 1 1 . . . 1 7 . . . . . 3 . . . . . . . . . . . . . . . Heat Transferred 11943 | . 1517 235 1998 2109 . 518 481 888 1141 . 100 . 525 1950 . . . . . 450 . . . . . . . . . . . . . 31 . Parts Sabotaged . | . . . . . . . . . . . . . . . . . . . . . . . . . . . . . . . . . . . . Parts Stolen . | . . . . . . . . . . . . . . . . . . . . . . . . . . . . . . . . . . . . Parts Stripped 92 | . . . . . . . . . . . . . . . . . . . . . . . . . 4 . . . . . . . . 4 84 Power Chain Reactions 1 | . . . . . . . . . . . . . . . . . . . . . . . . . . . . . . . . . . 1 . Alert | -11 -10 -10 -9 -9 -9 -8 -8 -8 -8 -8 -6 -6 -6 -6 -6 -6 -6 -5 -5 -5 -5 -5 -5 -4 -4 -4 -4 -3 -3 -2 -2 -2 -1 -1 -1 ------- Run | Yrd Mat Min Mat Min Exi Min Mat Sto Rec Scr Fac Was Fac Ext Cet Arc Hub Fac Was Fac Upp Upp Zhi Pro Fac Arm Lab Res Qua Res Tes Frg Acc Com Ac0 Maximum Alert Level 5 | . 1 1 1 . . . 1 . . . 2 . 3 2 2 1 2 2 . 2 . . . . 1 2 . . 2 1 1 5 4 4 . Low Security (%) 51 | . 97 99 25 100 . 100 60 100 100 . 37 100 35 34 . 4 25 43 100 53 . . . . 88 24 . 100 74 . 41 1 . . . Level 1 21 | . 2 . 74 . . . 39 . . . 45 . 2 40 92 95 70 50 . 25 . . . . 11 52 . . 25 100 58 34 . . . Level 2 9 | . . . . . . . . . . . 17 . 53 24 7 . 4 5 . 21 . . . . . 23 . . . . . 6 12 21 . Level 3 11 | . . . . . . . . . . . . . 8 . . . . . . . . . . . . . . . . . . 4 68 71 . Level 4 4 | . . . . . . . . . . . . . . . . . . . . . . . . . . . . . . . . 21 19 7 . Level 5 2 | . . . . . . . . . . . . . . . . . . . . . . . . . . . . . . . . 31 . . . High Security . | . . . . . . . . . . . . . . . . . . . . . . . . . . . . . . . . . . . . Max Security . | . . . . . . . . . . . . . . . . . . . . . . . . . . . . . . . . . . . . Peak Influence 1862 | . 211 227 334 146 . 30 393 197 173 . 465 149 820 578 409 353 422 486 169 492 . . . . 213 549 . 164 407 313 368 1862 1178 945 . Initial 1116 | . . 42 85 106 . . . 113 6 . . 149 56 389 248 147 98 206 139 111 . . . . 150 99 . . 47 228 175 201 1116 428 . Average 322 | . 119 116 229 55 . 2 139 47 55 . 227 117 363 297 336 305 230 227 155 231 . . . . 182 330 . 86 145 257 251 1007 888 655 . Influence Increases 17500 | . 570 567 659 344 . 70 928 563 471 . 1119 2 1320 1350 291 276 384 850 30 579 40 180 10 20 393 775 . 468 696 155 383 2351 207 1239 210 Destroy 0b10 Robot/C 7880 | . 380 340 380 200 . 40 460 120 160 . 660 . 600 720 160 80 120 220 . 80 40 . . 20 . 400 . 140 160 40 220 1420 40 680 . Destroy 0b10 Robot/NC 1050 | . 40 15 60 55 . 10 100 40 45 . 40 . 90 60 10 25 . 85 . 50 . . 10 . 40 20 . 95 15 10 15 50 25 45 . Destroy Leader 1418 | . 88 70 96 40 . 20 148 60 . . 142 . 134 92 . . 20 70 . 16 . . . . 12 48 . 48 20 24 12 120 4 134 . Allied During Kill 944 | . . . . . . . . 6 85 . 26 . 5 299 110 105 140 82 . . . . . . . 86 . . . . . . . . . Successful Hack 891 | . 12 . 22 . . . 26 66 30 . 23 . 5 49 . . 12 90 . 74 . . . . 22 26 . 48 135 21 58 74 41 57 . Select Force Hacks 230 | . . . 30 . . . . . 150 . . . . . . . 50 . . . . . . . . . . . . . . . . . . Disable Machine 1320 | . . 60 . 30 . . 45 60 . . 60 . 120 . . 45 30 75 . 75 . . . . . 90 . 15 90 . 45 300 . 30 150 Anti-Garrison Action 50 | . . . . . . . . . . . . . . . . . . . . . . . . . . . . . . . . . . 50 . Destroy Structure 942 | . 20 82 11 19 . . 44 31 1 . 63 2 66 10 11 6 12 78 . 44 . . . . 34 30 . 62 36 15 3 27 37 198 . Advance Influence 150 | . . . . . . . . . . . . . . . . . . . . . . . . . 150 . . . . . . . . . . Partial Spotted 480 | . . . . . . . . . . . . . . 60 . 15 . 30 30 30 . . . . 90 60 . 45 . . . 60 . . 60 Lose Combat Pursuer 2145 | . 30 . 60 . . . 105 180 . . 105 . 300 60 . . . 120 . 210 . 180 . . 45 15 . 15 240 45 30 300 60 45 . Influence Decreases 17370 | . 461 455 606 583 35 70 659 814 437 52 691 349 606 1700 367 362 245 874 269 246 223 139 360 20 190 608 370 383 374 249 338 847 1398 725 1265 Entered New Map 6215 | . . 67 136 168 35 . . 156 12 52 . 279 25 406 197 222 185 216 259 48 183 59 350 . . 104 370 . 38 179 138 157 746 243 1185 Time Decay 8310 | . 441 368 440 415 . 70 459 460 379 . 350 50 511 404 130 120 20 428 10 198 40 60 10 20 170 254 . 373 286 60 190 640 652 302 . Lost Part 631 | . 20 20 30 . . . 50 . 10 . 131 20 50 30 . . . . . . . 20 . . 10 40 . 10 30 . . 50 . 30 80 Lost Ally 666 | . . . . . . . . . 36 . 60 . 20 260 40 20 40 80 . . . . . . 10 60 . . 20 10 10 . . . . Purge Threat 1548 | . . . . . . . 150 198 . . 150 . . 600 . . . 150 . . . . . . . 150 . . . . . . . 150 . Squads Dispatched 150 | . 3 . 2 . . . 3 2 . . 7 . 19 4 . . 3 9 . 6 . 1 . . 5 6 . 12 6 2 1 7 42 10 . Investigation 53 | . 1 . 1 . . . 2 1 . . 3 . 8 3 . . 2 7 . 5 . . . . 4 2 . 6 . 2 . 5 . 1 . Extermination 27 | . . . . . . . . . . . 3 . 4 . . . . 2 . 1 . . . . 1 2 . . 3 . 1 1 6 3 . Reinforcement 41 | . 2 . 1 . . . 1 1 . . 1 . 4 1 . . 1 . . . . . . . . 2 . 6 . . . 1 18 2 . Assault 25 | . . . . . . . . . . . . . 2 . . . . . . . . 1 . . . . . . . . . . 18 4 . Garrison 4 | . . . . . . . . . . . . . 1 . . . . . . . . . . . . . . . 3 . . . . . . Intercept . | . . . . . . . . . . . . . . . . . . . . . . . . . . . . . . . . . . . . Searches Triggered . | . . . . . . . . . . . . . . . . . . . . . . . . . . . . . . . . . . . . Unchained Authorized 2 | . . . . . . . . . . . . . . . . . . 1 . . . . . . . . . . . . . . 1 . . Construction Impeded 4 | . . . . . . . . . . . 1 . 1 1 . . 1 . . . . . . . . . . . . . . . . . . Haulers Reinforced 5 | . . . . . . . . . . . . . 2 . . . . . . . . . . . . . . 2 . . . . 1 . . Active Scanning Responses . | . . . . . . . . . . . . . . . . . . . . . . . . . . . . . . . . . . . . Cargo Convoy Interrupts . | . . . . . . . . . . . . . . . . . . . . . . . . . . . . . . . . . . . . Stealth | -11 -10 -10 -9 -9 -9 -8 -8 -8 -8 -8 -6 -6 -6 -6 -6 -6 -6 -5 -5 -5 -5 -5 -5 -4 -4 -4 -4 -3 -3 -2 -2 -2 -1 -1 -1 --------- Run | Yrd Mat Min Mat Min Exi Min Mat Sto Rec Scr Fac Was Fac Ext Cet Arc Hub Fac Was Fac Upp Upp Zhi Pro Fac Arm Lab Res Qua Res Tes Frg Acc Com Ac0 Distress Signals 73 | . 1 . 4 . . . 6 5 . . . . 2 1 2 . 1 . . 4 . . . . 4 4 . 4 4 . . 14 . 17 . Communications Jammed 13 | . . . . . . . . . . . . . . . . . . . . . . . . . . . . . . . 13 . . . . Distress Signals 13 | . . . . . . . . . . . . . . . . . . . . . . . . . . . . . . . 13 . . . . Times Spotted 840 | . 30 16 29 22 . 2 34 38 17 . 40 6 65 34 7 4 8 20 5 20 8 16 . 6 45 36 . 22 46 9 16 117 6 44 72 Peak Tracking Total 16 | . 5 3 7 7 . 1 5 5 7 . 7 6 13 7 5 2 7 6 5 11 8 16 . 6 12 7 . 7 14 6 4 11 4 12 7 Tactical Retreats 93 | . 1 . 3 . . . 6 6 1 . 5 . 11 1 . . . 3 . 7 2 2 . 1 10 2 . 3 9 1 1 12 2 2 2 ECM-based Alert Blocks 59 | . . . . . . . . . . . . . 8 . . . . . . . . . . 4 27 2 . 12 6 . . . . . . Traps | -11 -10 -10 -9 -9 -9 -8 -8 -8 -8 -8 -6 -6 -6 -6 -6 -6 -6 -5 -5 -5 -5 -5 -5 -4 -4 -4 -4 -3 -3 -2 -2 -2 -1 -1 -1 ------- Run | Yrd Mat Min Mat Min Exi Min Mat Sto Rec Scr Fac Was Fac Ext Cet Arc Hub Fac Was Fac Upp Upp Zhi Pro Fac Arm Lab Res Qua Res Tes Frg Acc Com Ac0 Traps Triggered 27 | . . . . . . . . . . . 1 . . 3 . . . 1 . 4 . . . . . 1 . . . . . 16 . 1 . Indirectly . | . . . . . . . . . . . . . . . . . . . . . . . . . . . . . . . . . . . . Trap Hack Attempts . | . . . . . . . . . . . . . . . . . . . . . . . . . . . . . . . . . . . . Triggered . | . . . . . . . . . . . . . . . . . . . . . . . . . . . . . . . . . . . . Disarmed 6 | . . . . . . . . 6 . . . . . . . . . . . . . . . . . . . . . . . . . . . Reprogrammed . | . . . . . . . . . . . . . . . . . . . . . . . . . . . . . . . . . . . . Reused . | . . . . . . . . . . . . . . . . . . . . . . . . . . . . . . . . . . . . Traps Extracted . | . . . . . . . . . . . . . . . . . . . . . . . . . . . . . . . . . . . . Installed . | . . . . . . . . . . . . . . . . . . . . . . . . . . . . . . . . . . . . Triggered . | . . . . . . . . . . . . . . . . . . . . . . . . . . . . . . . . . . . . Machines | -11 -10 -10 -9 -9 -9 -8 -8 -8 -8 -8 -6 -6 -6 -6 -6 -6 -6 -5 -5 -5 -5 -5 -5 -4 -4 -4 -4 -3 -3 -2 -2 -2 -1 -1 -1 ---------- Run | Yrd Mat Min Mat Min Exi Min Mat Sto Rec Scr Fac Was Fac Ext Cet Arc Hub Fac Was Fac Upp Upp Zhi Pro Fac Arm Lab Res Qua Res Tes Frg Acc Com Ac0 Machines Disabled 99 | . . 4 . 2 . . 3 4 . . 4 . 8 5 . 3 2 5 . 5 . . . . . 6 2 1 6 . 3 22 . 4 10 Max in Single Turn 4 | . . 3 . 1 . . 1 1 . . 2 . 2 1 . 1 . . . 4 . . . . . 1 1 1 1 . 1 1 . 2 1 Garrison Access 9 | . . . . . . . 1 1 . . . . . . . . . 1 . . . . . . 2 . . 1 . 1 1 1 . . . Phase Generator 1 | . . . . . . . . . . . . . . . . . . . . . . . . . . . . . . . . . . 1 . Network Hub 1 | . . . . . . . . . . . . . . . . . 1 . . . . . . . . . . . . . . . . . . Machines Repaired . | . . . . . . . . . . . . . . . . . . . . . . . . . . . . . . . . . . . . Machines Dismantled . | . . . . . . . . . . . . . . . . . . . . . . . . . . . . . . . . . . . . Machines Sabotaged 1 | . . . . . . . . . . . . . . . . . 1 . . . . . . . . . . . . . . . . . . Overloaded Fab Kills . | . . . . . . . . . . . . . . . . . . . . . . . . . . . . . . . . . . . . Hacking | -11 -10 -10 -9 -9 -9 -8 -8 -8 -8 -8 -6 -6 -6 -6 -6 -6 -6 -5 -5 -5 -5 -5 -5 -4 -4 -4 -4 -3 -3 -2 -2 -2 -1 -1 -1 --------- Run | Yrd Mat Min Mat Min Exi Min Mat Sto Rec Scr Fac Was Fac Ext Cet Arc Hub Fac Was Fac Upp Upp Zhi Pro Fac Arm Lab Res Qua Res Tes Frg Acc Com Ac0 Machines Accessed 217 | . 7 . 8 . 1 . 12 12 11 4 8 . 17 14 . . 3 18 . 13 . . 4 . 12 8 . 17 8 7 7 13 6 6 1 Terminals 117 | . 6 . 6 . . . 9 9 6 . 4 . 6 12 . . 3 11 . 3 . . . . 2 4 . 5 7 3 3 6 6 6 . Fabricators 24 | . . . . . . . . . . . 3 . 5 . . . . 3 . 4 . . . . 1 2 . 1 . . 1 4 . . . Repair Stations 14 | . 1 . . . . . 1 2 . . . . 1 . . . . 1 . 1 . . . . 3 1 . 2 . . 1 . . . . Recycling Units 28 | . . . 1 . . . . . 5 . . . 4 2 . . . 2 . 2 . . . . 3 1 . 5 . 2 . 1 . . . Scanalyzers 14 | . . . 1 . . . 1 . . . 1 . 1 . . . . . . 2 . . . . 1 . . 3 1 1 1 1 . . . Garrison Access 10 | . . . . . . . 1 1 . . . . . . . . . 1 . 1 . . . . 2 . . 1 . 1 1 1 . . . Total Hacks 694 | . 23 . 22 . 1 . 36 48 23 10 33 . 41 36 . . 5 77 . 40 . . 17 . 37 29 . 46 34 19 23 42 16 19 17 Successful 431 | . 11 . 13 . 1 . 18 35 16 10 21 . 20 17 . . 3 43 . 21 . . 17 . 22 19 . 33 24 11 17 25 6 11 17 Failed 259 | . 12 . 8 . . . 17 13 7 . 12 . 21 19 . . 2 34 . 18 . . . . 15 10 . 12 10 8 6 17 10 8 . Catastrophic 38 | . . . . . . . 3 1 2 . 2 . 6 3 . . 1 9 . 2 . . . . 1 1 . 3 . . 1 1 . 2 . Database Lockouts 4 | . . . 1 . . . 1 . . . . . . . . . . . . 1 . . . . . . . 1 . . . . . . . Manual 271 | . 11 . 11 . . . 24 27 15 . 14 . 10 6 1 . 4 38 . 10 . . . . 14 8 . 23 16 6 13 9 5 6 . Terminals 416 | . 21 . 18 . . . 29 42 17 . 13 . 12 33 . . 5 42 . 11 . . . . 10 18 . 24 33 13 16 24 16 19 . Fabricators 91 | . . . . . . . . . . . 11 . 16 . . . . 16 . 12 . . . . 8 8 . 3 . . 2 15 . . . Repair Stations 44 | . 2 . . . . . 1 5 . . . . 1 . . . . 14 . 4 . . . . 8 1 . 5 . . 3 . . . . Recycling Units 42 | . . . 2 . . . . . 6 . . . 8 3 . . . 3 . 3 . . . . 7 2 . 5 . 2 . 1 . . . Scanalyzers 40 | . . . 2 . . . 4 . . . 9 . 4 . . . . . . 7 . . . . 2 . . 8 1 1 1 1 . . . Garrison Access 16 | . . . . . . . 2 1 . . . . . . . . . 2 . 3 . . . . 2 . . 1 . 3 1 1 . . . Terminal Hacks 194 | . 5 . 6 . 1 . 6 20 5 10 4 . 1 13 . . 1 10 . 2 . . 17 . 5 10 . 10 18 6 5 9 5 8 17 Record 32 | . . . . . 1 . . . . 8 . . . . . . . . . . . . 5 . . . . . . . . 1 . . 17 Part Schematic 15 | . . . . . . . . 3 1 . 1 . . . . . . 2 . . . . 4 . . . . 2 1 . . 1 . . . Robot Analysis 7 | . . . . . . . . . 1 . . . . . . . . . . . . . 4 . . . . . 2 . . . . . . Prototype ID Bank 22 | . 1 . 1 . . . 1 3 2 . . . . 2 . . . 2 . . . . 4 . . . . 2 4 . . . . . . Open Door 10 | . . . . . . . . 2 . 1 . . . 4 . . . . . . . . . . . . . . . . . . 2 1 . Branch Access Points 6 | . . . . . . . . . . . . . . . . . . 1 . . . . . . 2 . . 1 . 1 . . 1 . . Emergency Access Points 6 | . . . . . . . 1 1 . . . . . . . . . . . . . . . . . 2 . . . 1 1 . . . . Terminal Index 7 | . . . 1 . . . 1 . . . . . 1 . . . . . . . . . . . . 1 . . . . . 1 1 1 . Fabricator Index 1 | . . . . . . . . . . . . . . . . . . . . . . . . . 1 . . . . . . . . . . Repair Station Index 2 | . . . . . . . . . . . . . . . . . . . . . . . . . . . . 1 . . . . . 1 . Scanalyzer Index 2 | . . . . . . . . 1 . . . . . . . . . . . . . . . . . . . . . . . 1 . . . Garrison Index 2 | . . . . . . . . . . . . . . . . . . . . . . . . . . . . . 1 . 1 . . . . Alert Level 3 | . . . . . . . . . . . . . . 1 . . . . . . . . . . . . . . . . . . . 2 . Unreport Threat 13 | . . . . . . . 1 4 . . 1 . . 4 . . . 1 . . . . . . . 1 . . . . . . . 1 . Locate Traps 17 | . 2 . 2 . . . . 2 . . . . . 2 . . . 1 . . . . . . . 1 . 1 1 1 . 2 . 2 . Disarm Traps 1 | . . . . . . . . 1 . . . . . . . . . . . . . . . . . . . . . . . . . . . Surveillance Status 1 | . . . . . . . . . . . . . . . . . . . . . . . . . 1 . . . . . . . . . . Patrol Status 1 | . . . . . . . . . . . . . . . . . . . . . . . . . . . . . . . . . 1 . . Recall Investigation 1 | . . . . . . . . . . . . . . . . . . . . . . . . . . 1 . . . . . . . . . Recall Extermination 2 | . . . . . . . . . . . . . . . . . . . . . . . . . . . . . 2 . . . . . . Recall Reinforcements 1 | . . . . . . . . . . . . . . . . . . . . . . . . . . . . . 1 . . . . . . Hauler Manifests 11 | . 1 . 1 . . . 1 1 . . 2 . . . . . . 2 . 1 . . . . . . . 1 . 1 . . . . . Registered Components 3 | . . . . . . . . . . . . . . . . . . . . . . . . . . 1 . . 1 . 1 . . . . Registered Prototypes 3 | . . . . . . . . . . . . . . . . . . 1 . . . . . . . . . . 1 1 . . . . . Zone Layout 23 | . 1 . 1 . . . 1 2 1 . . . . . . . 1 . . 1 . . . . 1 3 . 2 4 1 2 2 . . . Proto ID Catalog 2 | . . . . . . . . . . 1 . . . . . . . . . . . . . . . . . . . . . 1 . . . Fabricator Hacks 43 | . . . . . . . . . . . 5 . 9 . . . . 7 . 6 . . . . 2 5 . 1 . . 1 7 . . . Network Status 5 | . . . . . . . . . . . 1 . . . . . . 1 . 1 . . . . . 1 . 1 . . . . . . . Load Schematic 22 | . . . . . . . . . . . 2 . 6 . . . . 4 . 3 . . . . 1 2 . . . . . 4 . . . Build 16 | . . . . . . . . . . . 2 . 3 . . . . 2 . 2 . . . . 1 2 . . . . 1 3 . . . Repair Station Hacks 29 | . . . . . . . . 4 . . . . . . . . . 13 . 1 . . . . 4 . . 5 . . 2 . . . . Scan Component 16 | . . . . . . . . 2 . . . . . . . . . 6 . 1 . . . . 3 . . 3 . . 1 . . . . Repair 12 | . . . . . . . . 2 . . . . . . . . . 6 . . . . . . 1 . . 2 . . 1 . . . . Refit 1 | . . . . . . . . . . . . . . . . . . 1 . . . . . . . . . . . . . . . . . Recycling Unit Hacks 3 | . . . . . . . . . . . . . 1 1 . . . 1 . . . . . . . . . . . . . . . . . Retrieve Components 3 | . . . . . . . . . . . . . 1 1 . . . 1 . . . . . . . . . . . . . . . . . Scanalyzer 28 | . . . 1 . . . 3 . . . 8 . 3 . . . . . . 5 . . . . 2 . . 4 1 1 . . . . . Insert Component 6 | . . . . . . . . . . . 4 . . . . . . . . 2 . . . . . . . . . . . . . . . Analyze 6 | . . . . . . . . . . . 4 . . . . . . . . 2 . . . . . . . . . . . . . . . Retrieve Study 16 | . . . 1 . . . 3 . . . . . 3 . . . . . . 1 . . . . 2 . . 4 1 1 . . . . . Garrison Access Hacks 9 | . . . . . . . 1 1 . . . . . . . . . 1 . . . . . . 2 . . 1 . 1 1 1 . . . Seal Access 9 | . . . . . . . 1 1 . . . . . . . . . 1 . . . . . . 2 . . 1 . 1 1 1 . . . Unauthorized Hacks 125 | . 6 . 6 . . . 8 10 11 . 4 . 6 3 . . 2 11 . 7 . . . . 7 4 . 12 5 3 8 8 1 3 . Terminals 75 | . 5 . 5 . . . 7 10 6 . 2 . . 2 . . 2 5 . 1 . . . . 2 1 . 6 5 1 6 5 1 3 . Track 7 | . . . . . . . . . . . . . . . . . . . . . . . . . . . . 1 2 . 2 1 . 1 . Assimilate 8 | . . . . . . . . . . . . . . . . . . 2 . . . . . . 1 . . 1 2 1 1 . . . . Botnet 20 | . . . . . . . 1 3 . . 2 . . 1 . . . 2 . 1 . . . . . 1 . 2 1 . 2 1 1 2 . Disrupt 2 | . . . . . . . . . . . . . . . . . . . . . . . . . 1 . . . . . . 1 . . . Operators 8 | . . . . . . . 1 1 . . . . . 1 . . . 1 . . . . . . . . . 1 . . 1 2 . . . Skim 28 | . 5 . 5 . . . 5 6 6 . . . . . . . . . . . . . . . . . . 1 . . . . . . . Sabotage 2 | . . . . . . . . . . . . . . . . . 2 . . . . . . . . . . . . . . . . . . Fabricators 16 | . . . . . . . . . . . 2 . 2 . . . . 4 . 3 . . . . 1 1 . 1 . . 1 1 . . . Prioritize 8 | . . . . . . . . . . . 1 . . . . . . 2 . 1 . . . . 1 1 . . . . 1 1 . . . Haulers 1 | . . . . . . . . . . . 1 . . . . . . . . . . . . . . . . . . . . . . . . Recompile 7 | . . . . . . . . . . . . . 2 . . . . 2 . 2 . . . . . . . 1 . . . . . . . Repair Stations 6 | . 1 . . . . . 1 . . . . . 1 . . . . . . 1 . . . . 1 1 . . . . . . . . . Patch 6 | . 1 . . . . . 1 . . . . . 1 . . . . . . 1 . . . . 1 1 . . . . . . . . . Recycling Units 26 | . . . 1 . . . . . 5 . . . 3 1 . . . 2 . 2 . . . . 3 1 . 5 . 2 . 1 . . . Tunnel 6 | . . . 1 . . . . . 5 . . . . . . . . . . . . . . . . . . . . . . . . . . Fedlink 19 | . . . . . . . . . . . . . 3 . . . . 2 . 2 . . . . 3 1 . 5 . 2 . 1 . . . Scrapoids 1 | . . . . . . . . . . . . . . 1 . . . . . . . . . . . . . . . . . . . . . Scanalyzers 2 | . . . . . . . . . . . . . . . . . . . . . . . . . . . . . . . 1 1 . . . Researchers 2 | . . . . . . . . . . . . . . . . . . . . . . . . . . . . . . . 1 1 . . . Garrison Access . | . . . . . . . . . . . . . . . . . . . . . . . . . . . . . . . . . . . . Data Cores Recovered 5 | . . . . . . . . . . . . . . . . . . 2 . . . . . . . . . 1 1 . . 1 . . . Used . | . . . . . . . . . . . . . . . . . . . . . . . . . . . . . . . . . . . . Hacking Detections 144 | . 6 . 6 . . . 10 6 6 . 7 . 13 11 . . 1 13 . 8 . . . . 7 6 . 9 6 5 4 10 5 5 . Full Trace Events 17 | . . . . . . . 1 1 1 . 3 . 2 1 . . . 3 . . . . . . . . . . . . . 4 . 1 . Feedback Events 1 | . . . . . . . . . . . . . . . . . . 1 . . . . . . . . . . . . . . . . . Corruption 1 | . . . . . . . . . . . . . . . . . . 1 . . . . . . . . . . . . . . . . . Feedback Blocked . | . . . . . . . . . . . . . . . . . . . . . . . . . . . . . . . . . . . . Robot Schematics Acquired 1 | . . . . . . . . . . . . . . . . . . . . . . . . . . . . . . . 1 . . . . Robots Built 2 | . . . . . . . . . . . 2 . . . . . . . . . . . . . . . . . . . . . . . . Authchips . | . . . . . . . . . . . . . . . . . . . . . . . . . . . . . . . . . . . . Time 152 | . . . . . . . . . . . 152 . . . . . . . . . . . . . . . . . . . . . . . . Total Robot Build Rating 10 | . . . . . . . . . . . 10 . . . . . . . . . . . . . . . . . . . . . . . . Part Schematics Acquired 23 | . . . . . . . . 3 1 . 4 . . . . . . 2 . 2 . . 4 . . . . 2 1 . 1 3 . . . Parts Built 18 | . . . . . . . . . . . 1 . 3 . . . . 2 . 3 . . . . 1 2 . . . . 1 5 . . . Authchips 8 | . . . . . . . . . . . . . 2 . . . . 2 . 1 . . . . 1 2 . . . . . . . . . Time 895 | . . . . . . . . . . . 58 . 268 . . . . 126 . 96 . . . . 38 88 . . . . 111 110 . . . Total Part Build Rating 98 | . . . . . . . . . . . 3 . 12 . . . . 10 . 19 . . . . 5 10 . . . . 9 30 . . . Part Studies Acquired 15 | . . . 1 . . . 3 . . . . . 3 . . . . . . . . . . . 2 . . 4 1 1 . . . . . Parts Repaired 12 | . . . . . . . . 2 . . . . . . . . . 6 . . . . . . 1 . . 2 . . 1 . . . . Time 709 | . . . . . . . . 76 . . . . . . . . . 384 . . . . . . 100 . . 127 . . 22 . . . . Parts Recycled . | . . . . . . . . . . . . . . . . . . . . . . . . . . . . . . . . . . . . Recycled Matter . | . . . . . . . . . . . . . . . . . . . . . . . . . . . . . . . . . . . . Retrieved Matter . | . . . . . . . . . . . . . . . . . . . . . . . . . . . . . . . . . . . . Retrieved Components 22 | . . . . . . . . . . . . . 9 10 . . . 3 . . . . . . . . . . . . . . . . . Parts Scanalyzed 5 | . . . . . . . . . . . 3 . . . . . . . . 2 . . . . . . . . . . . . . . . Part Schematics Acquired 5 | . . . . . . . . . . . 3 . . . . . . . . 2 . . . . . . . . . . . . . . . Parts Damaged 1 | . . . . . . . . . . . . . . . . . . . . 1 . . . . . . . . . . . . . . . Bothacking | -11 -10 -10 -9 -9 -9 -8 -8 -8 -8 -8 -6 -6 -6 -6 -6 -6 -6 -5 -5 -5 -5 -5 -5 -4 -4 -4 -4 -3 -3 -2 -2 -2 -1 -1 -1 ------------ Run | Yrd Mat Min Mat Min Exi Min Mat Sto Rec Scr Fac Was Fac Ext Cet Arc Hub Fac Was Fac Upp Upp Zhi Pro Fac Arm Lab Res Qua Res Tes Frg Acc Com Ac0 Used RIF Installer . | . . . . . . . . . . . . . . . . . . . . . . . . . . . . . . . . . . . . Robots Hacked 9 | . . . . . . . . . . . . . . . . . . . . . . . . . . . . . 1 . 2 6 . . . Non-combat . | . . . . . . . . . . . . . . . . . . . . . . . . . . . . . . . . . . . . Combat . | . . . . . . . . . . . . . . . . . . . . . . . . . . . . . . . . . . . . Robot Hacks Applied . | . . . . . . . . . . . . . . . . . . . . . . . . . . . . . . . . . . . . Manual 9 | . . . . . . . . . . . . . . . . . . . . . . . . . . . . . 1 . 2 6 . . . Relay Couplers Released 2 | . . . . . . . . . . . . . . . . . . 2 . . . . . . . . . . . . . . . . . Machine Destruction 2 | . . . . . . . . . . . . . . . . . . 2 . . . . . . . . . . . . . . . . . Fabnet Peak Effective % . | . . . . . . . . . . . . . . . . . . . . . . . . . . . . . . . . . . . . Robots Rewired 30 | . . . . . . . . . 18 . . . . 9 . . . . . . . . . . . 3 . . . . . . . . . Allies Hacked 1 | . . . . . . . . . . . . . . . . . . . . . . . . . . . . . . 1 . . . . . Hacks Repelled . | . . . . . . . . . . . . . . . . . . . . . . . . . . . . . . . . . . . . Allies | -11 -10 -10 -9 -9 -9 -8 -8 -8 -8 -8 -6 -6 -6 -6 -6 -6 -6 -5 -5 -5 -5 -5 -5 -4 -4 -4 -4 -3 -3 -2 -2 -2 -1 -1 -1 -------- Run | Yrd Mat Min Mat Min Exi Min Mat Sto Rec Scr Fac Was Fac Ext Cet Arc Hub Fac Was Fac Upp Upp Zhi Pro Fac Arm Lab Res Qua Res Tes Frg Acc Com Ac0 Total Allies 67 | . . . . . . . . 10 18 1 3 . 1 19 5 . . 2 . . . . . . 1 3 . . 2 1 1 . . . . Largest Group 26 | . . . . . . . . 10 26 26 2 . 1 13 8 7 6 4 . . . . . . 1 3 . . 1 1 1 . . . . Highest-Rated Group 668 | . . . . . . . . 173 430 430 54 . 47 521 668 543 514 384 . . . . . . 10 168 . . 45 45 26 . . . . Highest-Rated Ally 159 | . . . . . . . . 29 34 54 54 . 47 159 128 96 96 96 . . . . . . 10 56 . . 45 45 26 . . . . Total Orders 10 | . . . . . . . . . 2 7 . . . . . . . 1 . . . . . . . . . . . . . . . . . STAY 6 | . . . . . . . . . 1 4 . . . . . . . 1 . . . . . . . . . . . . . . . . . FOLLOW 4 | . . . . . . . . . 1 3 . . . . . . . . . . . . . . . . . . . . . . . . . Ally Attacks 425 | . . . . . . . . . 28 . 24 . 18 195 36 18 40 32 . . . . . . . 34 . . . . . . . . . Total Damage 10291 | . . . . . . . . . 350 . 652 . 265 3687 739 506 1428 1628 . . . . . . . 1036 . . . . . . . . . Kills 75 | . . . . . . . . . 6 . 4 . 2 32 5 5 6 11 . . . . . . . 4 . . . . . . . . . Allies Corrupted 4 | . . . . . . . . . . 1 . . . . . . 2 1 . . . . . . . . . . . . . . . . . Allies Melted 1 | . . . . . . . . . . . . . . . . . . . . . . . . . . . . . . . . 1 . . . Intel | -11 -10 -10 -9 -9 -9 -8 -8 -8 -8 -8 -6 -6 -6 -6 -6 -6 -6 -5 -5 -5 -5 -5 -5 -4 -4 -4 -4 -3 -3 -2 -2 -2 -1 -1 -1 ------- Run | Yrd Mat Min Mat Min Exi Min Mat Sto Rec Scr Fac Was Fac Ext Cet Arc Hub Fac Was Fac Upp Upp Zhi Pro Fac Arm Lab Res Qua Res Tes Frg Acc Com Ac0 Active Infowar (turns) 9518 | . . . . . . . 2004 1218 . . . 58 1257 89 . 77 39 963 31 408 81 89 14 105 295 182 68 891 255 57 267 395 332 343 . Sensors 3193 | . . . . . . . . . . . . 58 1238 63 . 77 39 963 31 408 81 89 14 101 31 . . . . . . . . . . Machine Analysis 3248 | . . . . . . . 2004 1218 . . . . . 26 . . . . . . . . . . . . . . . . . . . . . Cloaking 1739 | . . . . . . . . . . . . . . . . . . . . . . . . . . . 68 891 48 57 . . 332 343 . Jamming 725 | . . . . . . . . . . . . . . . . . . . . . . . . . . . . . 62 1 267 395 . . . ECM 857 | . . . . . . . . . . . . . 54 . . . . . . . . . . 4 264 182 . 208 145 . . . . . . Robot Analysis Total 7 | . . . . . . . . . 1 . . . . . . . . . . . . . 4 . . . . . 2 . . . . . . Derelict Logs Recovered 15 | . . 2 . 2 . . . . . 5 . . . . . . . . . . 2 3 . 1 . . . . . . . . . . . Drone Launches 14 | . . . . . . . . 14 . . . . . . . . . . . . . . . . . . . . . . . . . . . Drone Recoveries . | . . . . . . . . . . . . . . . . . . . . . . . . . . . . . . . . . . . . Exploration | -11 -10 -10 -9 -9 -9 -8 -8 -8 -8 -8 -6 -6 -6 -6 -6 -6 -6 -5 -5 -5 -5 -5 -5 -4 -4 -4 -4 -3 -3 -2 -2 -2 -1 -1 -1 ------------- Run | Yrd Mat Min Mat Min Exi Min Mat Sto Rec Scr Fac Was Fac Ext Cet Arc Hub Fac Was Fac Upp Upp Zhi Pro Fac Arm Lab Res Qua Res Tes Frg Acc Com Ac0 Turns Passed 33750 | . 1161 845 1095 1352 267 699 2133 1770 1894 4729 1694 109 1644 964 265 249 48 1053 31 418 98 121 65 123 356 556 164 891 635 133 387 2295 2412 1642 1452 Spaces Moved 33609 | 1 655 512 498 719 167 412 962 888 995 2957 824 89 1911 1301 207 164 112 1549 94 1122 398 493 170 422 758 1168 223 1830 1069 278 661 4060 740 2061 3139 Core . | . . . . . . . . . . . . . . . . . . . . . . . . . . . . . . . . . . . . Treads 7762 | . . . 379 719 167 412 846 888 995 2957 399 . . . . . . . . . . . . . . . . . . . . . . . . Legs 411 | 1 . . . . . . . . . . 253 . 157 . . . . . . . . . . . . . . . . . . . . . . Wheels 2195 | . 655 512 119 . . . 116 . . . 172 89 532 . . . . . . . . . . . . . . . . . . . . . . Hover 7900 | . . . . . . . . . . . . . . . . . . . . . . . . . . . . . . . . 1960 740 2061 3139 Flight 15341 | . . . . . . . . . . . . . 1222 1301 207 164 112 1549 94 1122 398 493 170 422 758 1168 223 1830 1069 278 661 2100 . . . Fastest Speed 6 | 120 95 140 145 160 160 160 145 145 157 157 98 98 20 20 23 20 20 20 20 20 20 20 20 17 11 24 26 16 16 27 21 6 32 32 20 Average Speed 65 | 120 129 145 161 160 160 160 160 154 157 157 162 103 54 22 23 23 20 20 20 21 20 20 21 19 22 25 26 25 26 27 28 28 32 32 31 Slowest Speed 240 | 120 155 155 240 160 160 160 216 162 219 157 210 113 130 23 23 91 20 87 20 23 20 23 23 20 92 28 26 101 27 27 29 65 32 38 34 Overloaded Moves 248 | . . . . . . . . . . . . . . . . . . . . . . . . 76 71 . . 3 8 . 16 74 . . . Propulsion Burnouts . | . . . . . . . . . . . . . . . . . . . . . . . . . . . . . . . . . . . . Robots Hopped 40 | . . . . . . . . . . . . . 3 9 . . . 1 . 5 . 1 . 1 1 5 . 1 4 . 2 7 . . . Potential Cave-ins 1 | . . . . . . . . . . . . . . . . . . . . . . . . . . . . . . . . . . . 1 Cave-ins Triggered . | . . . . . . . . . . . . . . . . . . . . . . . . . . . . . . . . . . . . Teleports 5 | . . . . . . . . . . . . . . . . . . . . . . . . . . 1 . . 1 . . 1 . 1 1 Exploration Rate (%) 61 | 2 90 93 36 98 55 97 75 96 99 87 22 88 38 89 55 75 12 35 86 33 67 56 60 63 18 55 93 51 82 10 62 65 23 52 90 Regions Visited 35 Branch Regions 22 Pre-discovered Areas 26 | . 3 1 3 . 1 . 1 1 7 3 . . 1 . . . . . . . . 1 3 1 . . . . . . . . . . . Known Exits Taken 22 | . 1 1 1 . . 1 1 1 . 1 . . 1 1 1 1 1 . . 1 1 1 1 1 1 . 1 1 . 1 . . 1 . . Unknown Exits Taken 9 | 1 . . . 1 1 . . . 1 . . . . . . . . . . . . . . . . 1 . . 1 . 1 1 . 1 . Scrap Searched 21 | . . 3 . 1 . 1 . . . 9 . . . . . . . . . . 3 2 . 2 . . . . . . . . . . . Spaces Dug 233 | . . 13 . 12 . . 6 38 . . 4 2 23 . . . . 17 . 11 . . . . 16 11 . 35 18 5 1 7 10 4 . Terrain Destroyed 684 | . 29 96 7 59 . . 59 38 . . 83 2 71 . 5 1 . 17 . 21 . . . . 17 11 . 35 18 5 1 15 10 84 . Melee 147 | . . . . . . . 6 3 . . 4 2 15 . . . . 12 . 9 . . . . 14 11 . 28 18 5 1 7 8 4 . Projectile 42 | . . . . 3 . . 1 . . . . . 1 . 5 1 . 5 . 2 . . . . 3 . . 7 . . . 8 2 4 . AOE 493 | . 29 96 7 56 . . 52 35 . . 79 . 53 . . . . . . 10 . . . . . . . . . . . . . 76 . Terrain Rammed . | . . . . . . . . . . . . . . . . . . . . . . . . . . . . . . . . . . . . Walls Destroyed . | . . . . . . . . . . . . . . . . . . . . . . . . . . . . . . . . . . . . Machines Disabled . | . . . . . . . . . . . . . . . . . . . . . . . . . . . . . . . . . . . . Actions | -11 -10 -10 -9 -9 -9 -8 -8 -8 -8 -8 -6 -6 -6 -6 -6 -6 -6 -5 -5 -5 -5 -5 -5 -4 -4 -4 -4 -3 -3 -2 -2 -2 -1 -1 -1 --------- Run | Yrd Mat Min Mat Min Exi Min Mat Sto Rec Scr Fac Was Fac Ext Cet Arc Hub Fac Was Fac Upp Upp Zhi Pro Fac Arm Lab Res Qua Res Tes Frg Acc Com Ac0 Total 43736 | . 838 574 691 823 167 430 1405 1201 1283 3043 1045 102 2375 1861 402 364 133 2215 105 1262 408 510 190 457 909 1361 317 2160 1358 329 843 5005 2912 3028 3630 Wait 6768 | . 57 16 75 37 . 3 239 205 71 34 48 7 260 380 168 175 17 559 10 65 3 16 1 31 87 82 72 203 202 37 138 495 2143 754 78 Move 33500 | . 654 511 497 718 166 411 961 887 994 2956 824 88 1904 1284 206 163 111 1547 93 1112 397 490 169 419 755 1160 222 1827 1061 277 656 4043 739 2060 3138 Hop 32 | . . . . . . . . . . . . . 3 7 . . . 1 . 4 . 1 . 1 1 2 . 1 3 . 2 6 . . . Pick Up 299 | . 25 2 17 2 1 2 23 4 3 20 16 1 15 2 . 3 1 10 . 10 1 1 5 . 9 16 4 5 6 1 4 49 4 14 23 Fast Attach 216 | . 2 1 4 . . . 12 8 1 1 16 1 24 12 1 5 . 13 . 13 . . 3 . . 5 2 10 6 . 3 54 1 6 12 Attach 156 | . 5 2 3 . . . 5 . 1 2 6 2 10 4 1 3 . 6 . 6 . 1 2 . 12 12 4 5 6 1 3 22 4 12 16 Detach 47 | . . . . . . . 1 . . 1 . . 3 4 1 . . 2 1 2 . 1 . . 5 2 1 1 2 . 2 12 1 5 . Swap 255 | . 13 16 11 8 . . 32 16 2 3 12 . 28 5 1 . 1 7 1 6 2 . 1 4 5 6 1 7 4 1 3 25 1 23 10 Drop 406 | . 12 4 24 4 . 2 41 19 4 20 16 1 36 11 2 6 1 16 . 12 . . 4 . 7 14 3 16 9 1 4 76 3 14 24 Fire 615 | . 70 22 60 54 . 12 81 43 24 1 16 . 19 20 21 5 . 5 . 3 . . . . 3 . . 7 4 . 2 108 1 31 3 Melee 1157 | . . . . . . . 7 12 5 5 91 2 73 56 1 4 2 49 . 29 5 . 5 2 25 53 8 78 55 11 26 103 15 109 326 Ram . | . . . . . . . . . . . . . . . . . . . . . . . . . . . . . . . . . . . . Kick . | . . . . . . . . . . . . . . . . . . . . . . . . . . . . . . . . . . . . Crush 8 | . . . . . . . 3 . 5 . . . . . . . . . . . . . . . . . . . . . . . . . . Escape Stasis 48 | . . . . . . . . . . . . . . 36 . . . . . . . . . . . . . . . . . 12 . . . Rewire 222 | . . . . . . . . . 173 . . . . 40 . . . . . . . . . . . 9 . . . . . . . . . Trap . | . . . . . . . . . . . . . . . . . . . . . . . . . . . . . . . . . . . . Miscellaneous 7 | . . . . . . . . 7 . . . . . . . . . . . . . . . . . . . . . . . . . . . Route ------- -11/Scrapyard -10/Materials (discovered 5 exits: *Mat x3 / *Min / [*Sub]) -10/Mines (discovered 2 exits: *Mat / [*Sub]) -9/Materials (discovered 5 exits: *Mat x3 / *Min x2) -9/Mines (discovered 3 exits: *Mat x2 / *Exi) -9/Exiles -8/Mines (discovered 2 exits: *Mat x2) -8/Materials (discovered 5 exits: *Fac x3 / *Sto x2) -8/Storage (discovered 2 exits: *Fac / *Rec) -8/Recycling (discovered 2 exits: *Fac / *Scr) -8/Scraptown (discovered 2 exits: *Fac x2) -6/Factory (discovered 8 exits: *Fac x4 / *Low x2 / *Ext x2) -6/Waste -6/Factory (discovered 7 exits: *Fac x3 / *Low x2 / *Ext x2) -6/Extension (discovered 2 exits: *Fac / *Cet) -6/Cetus (discovered 2 exits: *Fac / *Arc) -6/Archives (discovered 2 exits: *Fac / *Hub) -6/Hub_04(d) -5/Factory (discovered 4 exits: *Fac x2 / *Upp x2) -5/Waste -5/Factory -5/Upper Caves -5/Upper Caves (discovered 2 exits: Fac / *Zhi) -5/Zhirov -4/Proximity Caves -4/Factory (discovered 4 exits: Res / Upp x2 / *Arm) -4/Armory -4/Lab -3/Research (discovered 3 exits: *Res / *Qua x2) -3/Quarantine -2/Research (discovered 2 exits: *Tes x2) -2/Testing (discovered 2 exits: [*Sec] / *Frg) -2/Protoforge -1/Access -1/Command (discovered 3 exits: [Sur x2] / *Ac0) -1/Access_0 0b11 Command History --------- Turn | Location | Event 1 | -11/Scrapyard | Discovered new exit (range 0) 1 | -11/Scrapyard | Entered Materials 73 | -10/Materials | Discovered new exit (range 9) 112 | -10/Materials | Discovered new exit (range 9) 198 | -10/Materials | Discovered new exit (range 10) 307 | -10/Materials | Build established: Mutant 365 | -10/Materials | Discovered new exit (range 8) 433 | -10/Materials | Discovered new exit (range 13) 601 | -10/Materials | Derelicts attacked the area 721 | -10/Materials | Learned location of 1 exit from Storage 768 | -10/Materials | Learned location of 2 exits from Materials 782 | -10/Materials | Core integrity fell below 50% 807 | -10/Materials | Learned location of 2 exits from Subcaves 837 | -10/Materials | Learned Recycling recycling unit intel 859 | -10/Materials | Learned location of Subcaves (-10) 889 | -10/Materials | Learned location of 1 exit from Storage 944 | -10/Materials | Identified exit to Materials 944 | -10/Materials | Identified exit to Mines 1162 | -10/Materials | Entered Mines 1557 | -10/Mines | Learned location of Storage (-8) 1640 | -10/Mines | Discovered new exit (range 13) 1699 | -10/Mines | Build established: Scavenger-Mutant 1984 | -10/Mines | Learned Materials stockpile data 1990 | -10/Mines | Discovered exit to Materials (range 5) 2007 | -10/Mines | Entered Materials 2007 | -9/Materials | Evolved 2 slots: Propulsion x1, Utility x1 2008 | -9/Materials | Identified exit to Materials 2008 | -9/Materials | Identified exit to Mines 2360 | -9/Materials | Discovered exit to Materials (range 16) 2856 | -9/Materials | Learned 4 Recycling zone layouts 2898 | -9/Materials | Learned Storage emergency access door positions 2937 | -9/Materials | Central database locked down 2940 | -9/Materials | Learned location of Recycling (-8) 3102 | -9/Materials | Entered Mines 3215 | -9/Mines | Discovered exit to Materials (range 8) 3388 | -9/Mines | Assembled infested the area 3517 | -9/Mines | Received a Rocket Launcher from a helpful Derelict 3607 | -9/Mines | Destroyed 10 combat bots 3875 | -9/Mines | Discovered exit to Materials (range 3) 4447 | -9/Mines | Deemed a non-threat by the Exiles lab entrance 4447 | -9/Mines | Discovered new exit (range 5) 4454 | -9/Mines | Entered Exiles 4494 | -9/Exiles | Met 8R-AWN 4520 | -9/Exiles | Met EX-HEX 4600 | -9/Exiles | Met EX-DEC 4629 | -9/Exiles | Learned location of Zion (-7) 4708 | -9/Exiles | Discovered new exit (range 10) 4721 | -9/Exiles | Entered Mines 4948 | -8/Mines | Discovered exit to Materials (range 15) 4996 | -8/Mines | Discovered exit to Materials (range 5) 5420 | -8/Mines | Entered Materials 5420 | -8/Materials | Evolved 2 slots: Propulsion x1, Utility x1 5421 | -8/Materials | Identified exit to Factory 5421 | -8/Materials | Identified exit to Storage 5806 | -8/Materials | Discovered exit to Storage (range 4) 6197 | -8/Materials | Build established: Mutant 6232 | -8/Materials | Discovered exit to Factory (range 7) 6424 | -8/Materials | Learned location of 3 exits from Factory 6490 | -8/Materials | Learned location of 1 exit from Storage 6510 | -8/Materials | Build established: Scavenger-Mutant 6588 | -8/Materials | Learned Storage trap positions 6619 | -8/Materials | Learned Factory trap positions 6641 | -8/Materials | Learned location of 3 exits from Factory 6654 | -8/Materials | Learned location of 3 exits from Factory 6749 | -8/Materials | Learned Factory security intel 6989 | -8/Materials | Central database locked down 7553 | -8/Materials | Entered Storage 7554 | -8/Storage | Identified exit to Recycling 7556 | -8/Storage | Loaded intel: 22 trap records 7764 | -8/Storage | Met 01-MTF 7790 | -8/Storage | Build established: Mutant 8076 | -8/Storage | Repaired Arm. Treads+ 8313 | -8/Storage | Repaired Hrd. Medium Armor Plating 8704 | -8/Storage | Learned Factory trap positions 8829 | -8/Storage | Learned Storage trap positions 8908 | -8/Storage | Learned Recycling recycling unit intel 8942 | -8/Storage | Learned location of 3 exits from Factory 9030 | -8/Storage | Learned Recycling recycling unit intel 9079 | -8/Storage | Learned location of 1 exit from Storage 9104 | -8/Storage | Assisted by bots powering up and referring to "LRC-V3" 9323 | -8/Storage | Entered Recycling 9323 | -8/Recycling | Accompanied by 21 allies (01-MTF) 9324 | -8/Recycling | Identified exit to Factory 9325 | -8/Recycling | Loaded intel: 5 recycling unit locations 9407 | -8/Recycling | Build established: Commander-Mutant 10104 | -8/Recycling | Scanned before Scraplab entrance 10146 | -8/Recycling | Learned Factory trap positions 10153 | -8/Recycling | Found Prototype Energy Gun 10153 | -8/Recycling | Identified KN-7UR's Autopenetrator 10247 | -8/Recycling | Learned 2 Storage zone layouts 10281 | -8/Recycling | Learned Factory garrison access intel 10304 | -8/Recycling | Learned location of Lower Caves (-7) 10315 | -8/Recycling | Learned location of 1 exit from Extension 10335 | -8/Recycling | Learned 4 Recycling zone layouts 10367 | -8/Recycling | Learned 8 Factory zone layouts 10405 | -8/Recycling | Lost 3 allies 10409 | -8/Recycling | Learned Storage stockpile data 11158 | -8/Recycling | Entered Scraplab 11172 | -8/Recycling | Discovered new exit (range 3) 11217 | -8/Recycling | Entered Scraptown 11217 | -8/Scraptown | Accompanied by 26 allies 11217 | -8/Scraptown | System corruption cleaned by C-Scrubber 11467 | -8/Scraptown | Visited Observation Area 11487 | -8/Scraptown | Visited Awakened 11501 | -8/Scraptown | Visited Assassins FH 11531 | -8/Scraptown | Visited Bundlers 11595 | -8/Scraptown | Heard Great Nut preacher, LISTEN AND RECITE! 11611 | -8/Scraptown | Visited Cyclists 11639 | -8/Scraptown | Visited Fellowship of the Rings 11661 | -8/Scraptown | Visited The Evicted 11679 | -8/Scraptown | Visited UFD Registry 11679 | -8/Scraptown | Registered with UFD as "Megamech" 11768 | -8/Scraptown | Scanned Subdweller tech in exchange for log data 11771 | -8/Scraptown | Learned Factory interactive machine intel 12273 | -8/Scraptown | Visited Botcube Research 12301 | -8/Scraptown | Visited Derelict Rescue Squad 12347 | -8/Scraptown | Visited LU-1G1's Boring Crew 12383 | -8/Scraptown | Visited Sword Containment 12399 | -8/Scraptown | Found Prototype Slashing Weapon 12399 | -8/Scraptown | Identified Companion Sword 12435 | -8/Scraptown | Visited Research Penetration Think Tank 12510 | -8/Scraptown | Visited Abandonware Association 12528 | -8/Scraptown | Learned abandonware demo "REVENGE.EXE" 12564 | -8/Scraptown | Visited A0-MCA Data Center 12573 | -8/Scraptown | Given a B rating by A0-MCA 12578 | -8/Scraptown | Found A0-MCA's Component Scanner 12609 | -8/Scraptown | Visited Scrap Suit Storage 12633 | -8/Scraptown | Visited Science Guys 13070 | -8/Scraptown | Entered Cyclist Reading Room 14009 | -8/Scraptown | Found Scrap Suit 14112 | -8/Scraptown | Found Botcube 14511 | -8/Scraptown | Found PL-3XN's Ring of Power 14531 | -8/Scraptown | Murdered 5 allies 15647 | -8/Scraptown | Botcube activated 15665 | -8/Scraptown | Botcube completed mutation into wheeled form, armed with 2 cannons. 15684 | -8/Scraptown | Attached CPS modules to *Wheelborn. 15853 | -8/Scraptown | Met Optimus 15853 | -8/Scraptown | Accepted into 0bPrime 15946 | -8/Scraptown | Entered Factory 15946 | -6/Factory | Accompanied by 1 ally 15946 | -6/Factory | Evolved 4 slots: Propulsion x2, Utility x2 15947 | -6/Factory | Identified exit to Lower Caves 15947 | -6/Factory | Identified exit to Extension 15948 | -6/Factory | Identified exit to Factory 15950 | -6/Factory | Loaded intel: 74 trap records 15952 | -6/Factory | Loaded intel: 55 interactive machine locations 15953 | -6/Factory | Loaded intel: 4 garrison access locations 16239 | -6/Factory | Build established: Mutant 16493 | -6/Factory | Fabricated Imp. VTOL Module? 16530 | -6/Factory | Found Botcube 16550 | -6/Factory | Botcube activated 16562 | -6/Factory | Botcube completed mutation into wheeled form, armed with 2 cannons. 16594 | -6/Factory | Lost 3 parts (2n1u) 16729 | -6/Factory | Found Botcube 16802 | -6/Factory | Fabricated E-15 Imp (x2) 17023 | -6/Factory | Build established: Scavenger-Mutant 17340 | -6/Factory | Lost 4 parts (2n2u) 17442 | -6/Factory | Found Hvy. Reflective Plating 17640 | -6/Factory | Sucked down chute 17640 | -6/Factory | Entered Waste 17644 | -6/Waste | Found Broken Adv. Powered Armor 17650 | -6/Waste | Spotted C-40 Crusher 17653 | -6/Waste | Spotted C-40 Crusher 17655 | -6/Waste | EMP discharged 17655 | -6/Waste | System corruption reached 10% 17681 | -6/Waste | Spotted C-40 Crusher 17684 | -6/Waste | Spotted C-40 Crusher 17692 | -6/Waste | Crushed by Compactor (1 part destroyed, 1 dropped) 17695 | -6/Waste | Crushed by Compactor (1 part destroyed, 2 dropped) 17712 | -6/Waste | Spotted C-40 Crusher 17716 | -6/Waste | Spotted C-40 Crusher 17720 | -6/Waste | Found Corrupted Quantum Capacitor 17738 | -6/Waste | Discovered new exit (range 12) 17749 | -6/Waste | Entered Factory 17751 | -6/Factory | Loaded intel: 97 trap records 18186 | -6/Factory | Loaded intel: 8 recycling unit locations 18208 | -6/Factory | Garrison activated, responded to threat 18414 | -6/Factory | Core integrity fell below 50% 18569 | -6/Factory | Learned location of Protoforge (-2) 18655 | -6/Factory | Build established: Gladiator 18799 | -6/Factory | First assault squad dispatched 18801 | -6/Factory | Fabricated Cld. VTOL Module? 18803 | -6/Factory | Botcube activated 18885 | -6/Factory | Fabricated Cld. VTOL Module (x1) 19131 | -6/Factory | Fabricated Cld. VTOL Module? 19266 | -6/Factory | Found Botcube 19298 | -6/Factory | Discovered exit to Lower Caves (range 7) 19393 | -6/Factory | Entered Extension 19394 | -6/Extension | Identified exit to Cetus 19495 | -6/Extension | Scrapoids reinforcements arrived? 19522 | -6/Extension | Rescued A7 19580 | -6/Extension | Lost 3 allies 19785 | -6/Extension | Rescued a captive Derelict 19786 | -6/Extension | Rescued a captive Derelict 20018 | -6/Extension | Disrupted transfer network 20027 | -6/Extension | Spotted B-75 Beast 20069 | -6/Extension | Destroyed B-75 Beast 20073 | -6/Extension | Spotted B-75 Beast 20083 | -6/Extension | Destroyed B-75 Beast 20113 | -6/Extension | Rescued a captive Derelict 20135 | -6/Extension | Build established: Commander-Sprinter 20261 | -6/Extension | Rescued a captive Derelict 20295 | -6/Extension | Discovered exit to Factory (range 10) 20357 | -6/Extension | Entered Cetus 20357 | -6/Cetus | Accompanied by 5 allies (A7) 20362 | -6/Cetus | Acquired a Cetus Manufacturing Module code from A7 20371 | -6/Cetus | Spotted Cetus Guard 20375 | -6/Cetus | Destroyed Cetus Guard 20375 | -6/Cetus | Destroyed Cetus Guard 20378 | -6/Cetus | Destroyed Cetus Guard 20450 | -6/Cetus | Started Cetus Manufacturing Module 20460 | -6/Cetus | Discovered new exit (range 16) 20465 | -6/Cetus | Build established: Sprinter 20475 | -6/Cetus | Manufactured an Enhanced Grunt 20496 | -6/Cetus | Spotted Cetus Guard 20497 | -6/Cetus | Spotted Cetus Guard 20500 | -6/Cetus | Manufactured an Enhanced Grunt 20516 | -6/Cetus | Spotted Cetus Guard 20516 | -6/Cetus | Spotted Cetus Guard 20518 | -6/Cetus | Destroyed Cetus Guard 20525 | -6/Cetus | Manufactured an Enhanced Grunt 20526 | -6/Cetus | Allies destroyed Cetus Guard 20526 | -6/Cetus | Allies destroyed Cetus Guard 20531 | -6/Cetus | Destroyed Cetus Guard 20544 | -6/Cetus | Discovered exit to Factory (range 15) 20546 | -6/Cetus | Met Revision 17 20550 | -6/Cetus | Manufactured an Enhanced Grunt 20575 | -6/Cetus | Manufactured an Enhanced Grunt 20580 | -6/Cetus | Identified exit to Archives 20580 | -6/Cetus | Murdered A7 20583 | -6/Cetus | Extracted ID and sensor layout for unrecognized location from A7's data core 20622 | -6/Cetus | Entered Archives 20622 | -6/Archives | Accompanied by 7 allies 20638 | -6/Archives | Core integrity fell below 20% 20665 | -6/Archives | Discovered exit to Factory (range 15) 20820 | -6/Archives | Discovered new exit (range 15) 20838 | -6/Archives | Build established: Commander-Sprinter 20846 | -6/Archives | Identified exit to Hub_04(d) 20871 | -6/Archives | Entered Hub_04(d) 20871 | -6/Hub_04(d) | Accompanied by 6 allies 20872 | -6/Hub_04(d) | Discovered exit to Factory (range 10) 20909 | -6/Hub_04(d) | Network Hub disabled 20918 | -6/Hub_04(d) | Spotted Lightning 20918 | -6/Hub_04(d) | Spotted Lightning 20918 | -6/Hub_04(d) | Spotted Lightning 20919 | -6/Hub_04(d) | Entered Factory 20919 | -5/Factory | Accompanied by 4 allies 20919 | -5/Factory | Evolved 2 slots: Power x1, Utility x1 20920 | -5/Factory | Forged Quantum Companion 20920 | -5/Factory | Identified exit to Upper Caves 20921 | -5/Factory | Loaded intel: 114 trap records 21024 | -5/Factory | Repaired Cld. VTOL Module 21070 | -5/Factory | Repaired Imp. Medium Armor Plating 21140 | -5/Factory | Repaired Imp. Cesium-ion Thruster 21212 | -5/Factory | Repaired Imp. Cesium-ion Thruster 21252 | -5/Factory | Build established: Hacker-Sprinter 21293 | -5/Factory | Repaired Cld. Cesium-ion Thruster 21345 | -5/Factory | Repaired Adv. Sensor Array 21408 | -5/Factory | Loaded intel: 8 recycling unit locations 21629 | -5/Factory | Discovered new exit (range 4) 21630 | -5/Factory | Identified exit to Factory 21788 | -5/Factory | Discovered exit to Factory (range 15) 21827 | -5/Factory | Unchained authorized (GL-D0S) 21840 | -5/Factory | Fabricated Cld. Cesium-ion Thruster (x1) 21930 | -5/Factory | Fabricated Cld. Cesium-ion Thruster? 21972 | -5/Factory | Manually triggered Chute Trap 21972 | -5/Factory | Sucked down chute 21972 | -5/Factory | Entered Waste 21974 | -5/Waste | Spotted C-40 Crusher 21980 | -5/Waste | Spotted C-40 Crusher 21980 | -5/Waste | Spotted C-40 Crusher 21987 | -5/Waste | EMP discharged 21998 | -5/Waste | Spotted C-40 Crusher 21999 | -5/Waste | Spotted C-40 Crusher 22000 | -5/Waste | Spotted C-40 Crusher 22001 | -5/Waste | Discovered new exit (range 12) 22003 | -5/Waste | Identified exit to Factory 22003 | -5/Waste | Entered Factory 22085 | -5/Factory | Fabricated Adv. Reaction Control System (x2) 22094 | -5/Factory | Central database locked down 22238 | -5/Factory | Fabricated Cld. Cesium-ion Thruster? 22249 | -5/Factory | Spotted B-75 Beast 22300 | -5/Factory | Loaded intel: 8 recycling unit locations 22304 | -5/Factory | System corruption reached 10% 22409 | -5/Factory | Discovered exit to Upper Caves (range 8) 22421 | -5/Factory | Entered Upper Caves 22433 | -5/Upper Caves | Encountered an infested base 22438 | -5/Upper Caves | Identified exit to Upper Caves 22493 | -5/Upper Caves | Attracted the attention of an 0b10 checkpoint 22519 | -5/Upper Caves | Entered another Upper Caves area 22555 | -5/Upper Caves | Build established: Machinist-Sprinter 22556 | -5/Upper Caves | Learned 4 Factory zone layouts 22594 | -5/Upper Caves | Attracted the attention of an 0b10 outpost 22635 | -5/Upper Caves | Discovered new exit (range 13) 22640 | -5/Upper Caves | Identified exit to Zhirov 22640 | -5/Upper Caves | Entered Zhirov 22640 | -5/Zhirov | Discovered new exit (range 3) 22645 | -5/Zhirov | Met Zhirov 22649 | -5/Zhirov | Learned location of Command (-1) 22649 | -5/Zhirov | Learned location of Testing (-2) 22651 | -5/Zhirov | Zhirov requested help retrieving the SGEMP Prototype 22655 | -5/Zhirov | Found Alien Artifact 22655 | -5/Zhirov | Identified Integrated Reactor 22655 | -5/Zhirov | Installed Integrated Reactor, increased core energy generation (+10) 22659 | -5/Zhirov | Found Alien Artifact 22704 | -5/Zhirov | Identified exit to Proximity Caves 22705 | -5/Zhirov | Entered Proximity Caves 22757 | -4/Proximity Caves | Spotted B-86 Titan 22790 | -4/Proximity Caves | Spotter reported a threat 22806 | -4/Proximity Caves | Discovered exit to Factory (range 14) 22828 | -4/Proximity Caves | Entered Factory 22828 | -4/Factory | Evolved 2 slots: Utility x2 22829 | -4/Factory | Identified exit to Research 22840 | -4/Factory | Identified exit to Upper Caves 22840 | -4/Factory | Identified exit to Armory 22955 | -4/Factory | Repaired Broken Cld. Cesium-ion Thruster? 23067 | -4/Factory | Fabricated Cld. Cesium-ion Thruster? 23101 | -4/Factory | Loaded intel: 8 recycling unit locations 23184 | -4/Factory | Entered Armory 23185 | -4/Armory | Met VL-GR5, who suggested a friendly competition 23292 | -4/Armory | Loaded intel: 2 recycling unit locations 23366 | -4/Armory | Lost 3 parts (1n2u) 23477 | -4/Armory | Spotted B-86 Titan 23578 | -4/Armory | Build established: Hacker-Sprinter 23591 | -4/Armory | Found Com. Tesla Bomb Launcher 23596 | -4/Armory | Fabricated Cld. Cesium-ion Thruster? 23596 | -4/Armory | Fabricated Cld. Cesium-ion Thruster? 23652 | -4/Armory | Found Exp. Signal Interpreter 23705 | -4/Armory | Discovered new exit (range 3) 23720 | -4/Armory | Identified Transdimensional Reconstructor 23720 | -4/Armory | Warped through subspace to slip node 23740 | -4/Armory | Entered Lab 23740 | -4/Lab | Discovered exit to Research (range 9) 23744 | -4/Lab | Hidden lab's door opened automatically 23744 | -4/Lab | Sensor layout match revealed 23745 | -4/Lab | Gained access to the hidden lab's interior 23804 | -4/Lab | Found Alien Artifact 23804 | -4/Lab | Identified Core Expander 23804 | -4/Lab | Installed Core Expander, added new Weapon slot 23816 | -4/Lab | Found Alien Artifact 23816 | -4/Lab | Identified Integrated Dissipator 23816 | -4/Lab | Installed Integrated Dissipator, increased core heat dissipation (+20) 23827 | -4/Lab | Found Transdimensional Reconstructor 23837 | -4/Lab | Found Gui. Remote Datajack 23848 | -4/Lab | Found AEGIS Remote Shield 23874 | -4/Lab | Found Deep Network Scanner 23887 | -4/Lab | Found Potential Cannon 23904 | -4/Lab | Entered Research 23904 | -3/Research | Evolved 2 slots: Propulsion x1, Utility x1 23968 | -3/Research | Loaded intel: 5 recycling unit locations 24088 | -3/Research | Identified exit to Quarantine 24104 | -3/Research | Revision forces began assault on 0b10 24368 | -3/Research | Met up with Revision 17++ 24413 | -3/Research | Central database locked down 24484 | -3/Research | Discovered new exit (range 16) 24595 | -3/Research | Repaired Quantum Shading Machine 24604 | -3/Research | Research terminal network offline 24662 | -3/Research | Repaired Hrd. Medium Armor Plating 24795 | -3/Research | Entered Quarantine 24886 | -3/Quarantine | Found Alien Energy Cannon 24896 | -3/Quarantine | Cryocooling Duct disabled 24911 | -3/Quarantine | Ambient heat levels rising (+20) 24911 | -3/Quarantine | Non-combat units ordered to evacuate 25085 | -3/Quarantine | Discovered new exit (range 8) 25093 | -3/Quarantine | Found Alien Artifact 25190 | -3/Quarantine | Garrison activated, responded to threat 25211 | -3/Quarantine | Warped through subspace 25226 | -3/Quarantine | Found Alien Slashing Weapon 25226 | -3/Quarantine | Identified Sigix Broadsword 25241 | -3/Quarantine | Lost 3 parts (1p1u1w) 25277 | -3/Quarantine | Found Alien Artifact 25285 | -3/Quarantine | Identified Subatomic Replicator 25285 | -3/Quarantine | Forged Prototype Slashing Weapon 25337 | -3/Quarantine | Identified Core Cannon 25393 | -3/Quarantine | Found Transdimensional Reconstructor 25430 | -3/Quarantine | Entered Research 25430 | -2/Research | Evolved 2 slots: Propulsion x1, Utility x1 25461 | -2/Research | Identified exit to Testing 25498 | -2/Research | Loaded intel: 5 recycling unit locations 25563 | -2/Research | Entered Testing 25604 | -2/Testing | Repaired Impulse Thruster Array+ 25681 | -2/Testing | Found Exp. Core Analyzer 25741 | -2/Testing | Fabricated Cld. Linear Gravjet? 25887 | -2/Testing | Found Hyp. Multirail 25903 | -2/Testing | Spotted Fortress 25922 | -2/Testing | Discovered new exit (range 6) 25922 | -2/Testing | Discovered new exit (range 7) 25950 | -2/Testing | Entered Protoforge 26072 | -2/Protoforge | Discovered new exit (range 10) 26088 | -2/Protoforge | Identified Dimensional Node Initializer 26088 | -2/Protoforge | Initialized slip node 26344 | -2/Protoforge | Spotted V761-u 26346 | -2/Protoforge | Superfortress began startup sequence 26404 | -2/Protoforge | UFD initiated attack on Protoforge (Readiness: Maximal) 26404 | -2/Protoforge | Loaded intel: 3 recycling unit locations 26439 | -2/Protoforge | Spotted EXE-6 26439 | -2/Protoforge | Spotted EXE-6 26441 | -2/Protoforge | Optimus greeted in Protoforge 26445 | -2/Protoforge | Found Exp. Core Analyzer 26447 | -2/Protoforge | Found Cep. XC Strikerail 26451 | -2/Protoforge | Found Exp. Armor Integrity Analyzer 26491 | -2/Protoforge | Spotted SKR-2 26492 | -2/Protoforge | Spotted SKR-2 26502 | -2/Protoforge | Forge Plexus network access discovered 26512 | -2/Protoforge | Found Exp. Melee Analysis Suite 26549 | -2/Protoforge | Fabricated Weapon Mount (x2) 26575 | -2/Protoforge | Fabricated Nanoactuators (x2) 26579 | -2/Protoforge | Met 7R-MNS 26639 | -2/Protoforge | Fabricated Cld. Nuclear Pulse Thruster (x1) 26684 | -2/Protoforge | Spotted AP7-3 26703 | -2/Protoforge | Spotted B-90 Cyclops 26705 | -2/Protoforge | P-80 Master assimilated allied 02F07-K 26718 | -2/Protoforge | Spotted Executioner 26788 | -2/Protoforge | Spotted Striker 26793 | -2/Protoforge | Spotted Executioner 26794 | -2/Protoforge | P-80 Master assimilated allied 02F23-D 26812 | -2/Protoforge | Spotted Striker 26813 | -2/Protoforge | Build established: Scavenger-Sprinter 26815 | -2/Protoforge | Spotted Striker 26818 | -2/Protoforge | Destroyed Striker 26829 | -2/Protoforge | Lost 13 allies 26834 | -2/Protoforge | Destroyed Striker 26851 | -2/Protoforge | Destroyed Executioner 26860 | -2/Protoforge | Spotted Executioner 26871 | -2/Protoforge | Spotted Striker 26872 | -2/Protoforge | Destroyed 15 combat bots 26890 | -2/Protoforge | Spotted Executioner 26892 | -2/Protoforge | Destroyed Executioner 26903 | -2/Protoforge | Spotted Executioner 26919 | -2/Protoforge | Destroyed Executioner 26919 | -2/Protoforge | P-80 Master assimilated allied 02F71-D 26946 | -2/Protoforge | Spotted Executioner 26946 | -2/Protoforge | Spotted Striker 26947 | -2/Protoforge | Spotted Executioner 26954 | -2/Protoforge | Found Crosscalibrator 26980 | -2/Protoforge | Destroyed Striker 26984 | -2/Protoforge | Spotted Executioner 26991 | -2/Protoforge | Destroyed Executioner 27021 | -2/Protoforge | Destroyed Executioner 27021 | -2/Protoforge | Destroyed Executioner 27026 | -2/Protoforge | UFD reported confirmed Drillbomb installation 27059 | -2/Protoforge | Spotted Decapitator 27059 | -2/Protoforge | Spotted Decapitator 27059 | -2/Protoforge | Spotted Decapitator 27067 | -2/Protoforge | Destroyed 16 combat bots 27074 | -2/Protoforge | Destroyed Decapitator 27080 | -2/Protoforge | Destroyed Decapitator 27080 | -2/Protoforge | Destroyed Decapitator 27083 | -2/Protoforge | UFD reported confirmed Drillbomb installation 27123 | -2/Protoforge | Destroyed V769-k 27144 | -2/Protoforge | Found Cep. Combat Aerolev Unit 27150 | -2/Protoforge | Found Cep. Combat Aerolev Unit 27189 | -2/Protoforge | Spotted Decapitator 27189 | -2/Protoforge | Spotted Decapitator 27190 | -2/Protoforge | Spotted Decapitator 27229 | -2/Protoforge | Found Cep. Disintegration Ray 27315 | -2/Protoforge | Found Cep. Antigrav Storage Unit 27316 | -2/Protoforge | Found Cep. Chromion Battery 27322 | -2/Protoforge | Found Cep. Chromion Battery 27336 | -2/Protoforge | Build established: Hacker-Sprinter 27339 | -2/Protoforge | Found Cep. NT7 Matterbank 27364 | -2/Protoforge | Spotted Immortal 27364 | -2/Protoforge | Spotted Immortal 27394 | -2/Protoforge | Destroyed Immortal 27405 | -2/Protoforge | Destroyed Immortal 27407 | -2/Protoforge | Spotted V849-v 27410 | -2/Protoforge | Spotted V128-d 27427 | -2/Protoforge | Destroyed V128-d 27432 | -2/Protoforge | Destroyed V849-v 27433 | -2/Protoforge | Spotted V234-x 27442 | -2/Protoforge | Found Cep. Zero-point Core 27452 | -2/Protoforge | Found Faulty Cep. Zero-point Core 27455 | -2/Protoforge | Spotted V208-j 27472 | -2/Protoforge | Found Corrupted Cep. Antimissile System 27488 | -2/Protoforge | Spotted Decapitator 27497 | -2/Protoforge | Destroyed Decapitator 27504 | -2/Protoforge | Found Cep. RG22 Armor 27506 | -2/Protoforge | Found Cep. Reaction Jets 27516 | -2/Protoforge | Spotted V188-v 27516 | -2/Protoforge | Destroyed V188-v 27523 | -2/Protoforge | Found Faulty Cep. Reaction Jets 27526 | -2/Protoforge | Found Cep. RG22 Armor 27528 | -2/Protoforge | Found Cep. Core Shell 27532 | -2/Protoforge | Found Cep. Projectile Intercept Suite 27537 | -2/Protoforge | Found Faulty Exp. Remote Shield 27538 | -2/Protoforge | Found Faulty Cep. Projectile Intercept Suite 27539 | -2/Protoforge | Found Faulty Cep. Energy Mantle 27541 | -2/Protoforge | Found Faulty Cep. Beam Splitter 27549 | -2/Protoforge | Found Faulty Exp. Remote Shield 27577 | -2/Protoforge | Spotted V205-s 27583 | -2/Protoforge | Found Cep. Weapon Articulator 27585 | -2/Protoforge | Found Cep. Melee Reflex Suite 27591 | -2/Protoforge | Spotted V865-l 27597 | -2/Protoforge | Found Femtoactuators 27598 | -2/Protoforge | Found Femtoactuators 27608 | -2/Protoforge | Found Cep. Hypertargeting System 27628 | -2/Protoforge | UFD reported confirmed Drillbomb installation 27636 | -2/Protoforge | Found Mni. Quantum Capacitor 27694 | -2/Protoforge | Additional patrols dispatched to research labs 27696 | -2/Protoforge | Found Cep. Nanofilaments [Tensile] 27696 | -2/Protoforge | Installed Cep. Nanofilaments [Tensile], 3 resistances modified: KI +20%, TH -10%, I +20% 27718 | -2/Protoforge | System corruption reached 10% 27721 | -2/Protoforge | Spotted AP7-3 27726 | -2/Protoforge | Destroyed AP7-3 27727 | -2/Protoforge | Spotted AP7-3 27734 | -2/Protoforge | Destroyed AP7-3 27739 | -2/Protoforge | UFD reported confirmed Drillbomb installation 27746 | -2/Protoforge | Found Cep. Cloak Mesh 27751 | -2/Protoforge | Found Cep. Dimensional Manipulator 27755 | -2/Protoforge | Found Cep. Thermoelectric Network 27759 | -2/Protoforge | Found Faulty Cep. Cloak Mesh 27843 | -2/Protoforge | Found Faulty Cep. Combat Aerolev Unit 27851 | -2/Protoforge | Found Faulty Cep. Gyrokinetic System 27859 | -2/Protoforge | Found Faulty Cep. Gyrokinetic System 27900 | -2/Protoforge | Found Faulty Cep. Plasma Driver 27905 | -2/Protoforge | Found Faulty Cep. Plasma Driver 28086 | -2/Protoforge | Found Cep. Lightning Penetrator 28106 | -2/Protoforge | Destroyed Decapitator 28113 | -2/Protoforge | Destroyed Decapitator 28113 | -2/Protoforge | Destroyed Decapitator 28118 | -2/Protoforge | Found Cep. Concussive Dispersal Blaster 28145 | -2/Protoforge | Spotted Striker 28221 | -2/Protoforge | Found Cep. Navigation Harness 28229 | -2/Protoforge | Warped through subspace to slip node 28230 | -2/Protoforge | Core integrity fell below 50% 28231 | -2/Protoforge | Found Transdimensional Reconstructor 28245 | -2/Protoforge | Entered Access 28245 | -1/Access | Evolved 2 slots: Utility x2 28326 | -1/Access | Spotted Executioner 28387 | -1/Access | Identified exit to Command 28422 | -1/Access | Spotted Executioner 28495 | -1/Access | First assault squad dispatched 28625 | -1/Access | Unchained authorized (QV-33N) 30657 | -1/Access | Entered Command 30907 | -1/Command | First assault squad dispatched 31024 | -1/Command | Destroyed 11 combat bots 31079 | -1/Command | Spotted M Guard 31079 | -1/Command | Spotted M Guard 31080 | -1/Command | Spotted Combat Programmer 31093 | -1/Command | Spotted Combat Programmer 31098 | -1/Command | Destroyed Combat Programmer 31105 | -1/Command | Destroyed Combat Programmer 31147 | -1/Command | Destroyed M Guard 31168 | -1/Command | Destroyed M Guard 31168 | -1/Command | All MAIN.C guards destroyed 31221 | -1/Command | Found Corrupted Hvy. Regenerative Plating 31222 | -1/Command | Found Corrupted AEGIS Remote Shield 31229 | -1/Command | System corruption reached 10% 31261 | -1/Command | Build established: Sprinter 31310 | -1/Command | Met MAIN.C 31314 | -1/Command | 0b10 Conduit disabled 31322 | -1/Command | Destroyed MAIN.C Shell 31323 | -1/Command | MAIN.C activated Command garrisons 31346 | -1/Command | Destroyed MAIN.C 31347 | -1/Command | Discovered new exit (range 38) 31347 | -1/Command | Discovered new exit (range 87) 31347 | -1/Command | Extracted map data and part IDs from MAIN.C's data core 31348 | -1/Command | Found Exp. Powered Armor 31379 | -1/Command | Found Exp. System Purifier 31587 | -1/Command | Found Exp. Armor Integrity Analyzer 31588 | -1/Command | Found Exp. Core Analyzer 31609 | -1/Command | Build established: Scavenger-Sprinter 32174 | -1/Command | Phase Generator disabled 32247 | -1/Command | Found Exp. Core Analyzer 32264 | -1/Command | Found Corrupted AEGIS Remote Shield 32296 | -1/Command | Warped through subspace to slip node 32296 | -1/Command | Discovered new exit (range 4) 32299 | -1/Command | Entered Access_0 32300 | -1/Access_0 | Met Architect 32303 | -1/Access_0 | Destroyed A8 32307 | -1/Access_0 | Architect warped through subspace 32346 | -1/Access_0 | Architect warped through subspace 32348 | -1/Access_0 | Found Prototype Protection 32382 | -1/Access_0 | Subspace Access Node disabled 32394 | -1/Access_0 | Architect warped through subspace 32418 | -1/Access_0 | A6 warped into view 32435 | -1/Access_0 | Architect warped through subspace 32443 | -1/Access_0 | Destroyed A6 32445 | -1/Access_0 | Found Exp. Melee Analysis Suite 32452 | -1/Access_0 | Identified Centrium Linked Plating 32456 | -1/Access_0 | Architect warped through subspace 32473 | -1/Access_0 | Architect warped through subspace 32488 | -1/Access_0 | Architect warped through subspace 32488 | -1/Access_0 | Found Centrium Linked Plating 32504 | -1/Access_0 | Architect warped through subspace 32509 | -1/Access_0 | Subspace Access Node disabled 32533 | -1/Access_0 | Architect warped through subspace 32542 | -1/Access_0 | A5 warped into view 32566 | -1/Access_0 | Destroyed A5 32575 | -1/Access_0 | Architect warped through subspace 32615 | -1/Access_0 | Architect warped through subspace 32615 | -1/Access_0 | Found Prototype Device 32615 | -1/Access_0 | Identified Desublimator 32698 | -1/Access_0 | Destroyed A2 32700 | -1/Access_0 | Extracted Singularity Gate Test 138-C access codes from A2's data core 32707 | -1/Access_0 | Architect warped through subspace 32709 | -1/Access_0 | Found Exp. Thermal Defense Suite 32711 | -1/Access_0 | Found Prototype Device 32740 | -1/Access_0 | Identified ST Field Compressor 32749 | -1/Access_0 | Singularity Gate disabled 32762 | -1/Access_0 | Architect warped through subspace 32808 | -1/Access_0 | A4 warped into view 32826 | -1/Access_0 | Architect warped through subspace 32833 | -1/Access_0 | Destroyed A4 32854 | -1/Access_0 | Architect warped through subspace 32886 | -1/Access_0 | Architect warped through subspace 32905 | -1/Access_0 | Core integrity fell below 50% 32921 | -1/Access_0 | Architect warped through subspace 32924 | -1/Access_0 | Found Exp. Phase Shifter 32930 | -1/Access_0 | Architect warped through subspace 32938 | -1/Access_0 | Architect warped through subspace 32944 | -1/Access_0 | Subspace Access Node disabled 32973 | -1/Access_0 | Found Hpw. Transdimensional Reconstructor 32995 | -1/Access_0 | Found Integrated Reactor 32995 | -1/Access_0 | Installed Integrated Reactor, increased core energy generation (+10) 33004 | -1/Access_0 | Architect warped through subspace 33044 | -1/Access_0 | Found Exp. Powered Armor 33050 | -1/Access_0 | Found Deep Network Scanner 33052 | -1/Access_0 | Found Deep Network Scanner 33069 | -1/Access_0 | Found Exp. Phase Shifter 33074 | -1/Access_0 | Architect warped through subspace 33077 | -1/Access_0 | Found Exp. Phase Shifter 33083 | -1/Access_0 | Subspace Access Node disabled 33102 | -1/Access_0 | Destroyed Architect 33103 | -1/Access_0 | Extracted unknown sensor trigger ID from Architect's data core 33104 | -1/Access_0 | Found Alien Energy Gun 33104 | -1/Access_0 | Identified Modified Sigix Sheargun 33105 | -1/Access_0 | Found Hpw. Transdimensional Reconstructor 33107 | -1/Access_0 | Found Centrium Linked Plating 33113 | -1/Access_0 | Found Centrium Linked Plating 33116 | -1/Access_0 | Found Prototype Hackware 33336 | -1/Access_0 | Found Exp. Powered Armor 33376 | -1/Access_0 | Build established: Scavenger-Mutant 33409 | -1/Access_0 | Found Modified Sigix Sheargun 33431 | -1/Access_0 | A3 warped into view 33445 | -1/Access_0 | Destroyed A3 33556 | -1/Access_0 | Found Exp. Powered Armor 33665 | -1/Access_0 | Found Sigix Corpse 33746 | -1/Access_0 | Warped through subspace to slip node 33746 | -1/Access_0 | Discovered new exit (range 8) 33751 | *** | Establishing 0b11! Last Messages --------------- 33585_ System corrupted: Matter fused (-6). 33597_ Destroyed Adv. Heat Sink. 33597_ Superquantum Companion surprise attacks Enhanced Grunt. 33597_ Destroyed Adv. Heat Sink. Superquantum Companion releases a shadow of itself that zips off towards Enhanced Grunt. 33599_ Enhanced Grunt sundered. 33599_ Enhanced Grunt destroyed. 33599_ Superquantum Companion surprise attacks Enhanced Grunt. 33602_ Enhanced Grunt destroyed. 33605_ Acquired 6 matter. 33623_ System corrupted: Heat flow error (+222). 33661_ Analysis Chamber breached. 33662_ System corrupted: Energy discharge (-78). 33664_ Dropped Cmb. Antigrav System. 33665_ Acquired Sigix Corpse. 33746_ Warped through subspace, drawn to slip node. 33746_ EXIT=FOUND [Achievement: 75k Club] [Achievement: 100k Club] Map ----- +----------------------------------------------------+ | | | | | | | | | | | | | | | | | | | | | | | | | | | | | | | | | ?????????????????????????????????????????????????? | | ?????????????????????????????????????????????????? | | ?????????????????????????????????????????????????? | | ?????????????????????????????????????????????????? | | ?????????????????????????????????????????????????? | | ?????????????????????????????????????????????????? | | ????????????????????????###??????????????????????? | | ???????????????????????## ##?????????????????????? | | ???????????????????????# #?????????????????????? | | ???????????????????????# @ #?????????????????????? | | ??????????????????????## #?????????????????????? | | ??????????????????????# #?????????????????????? | | ??????????????????????# ##?????????????????????? | | ??????????????????????## #?????????????????????? | | ??????????????????????# #?????????????????????? | | ??????????????????????# ##?????????????????????? | | ??????????????????????# < #?????????????????????? | | ??????????????????????# ##?????????????????????? | | ??????????????????????## #??????????????????????? | | ???????????????????????####??????????????????????? | | ?????????????????????????????????????????????????? | | ?????????????????????????????????????????????????? | | ?????????????????????????????????????????????????? | | ?????????????????????????????????????????????????? | | ?????????????????????????????????????????????????? | | ?????????????????????????????????????????????????? | | ?????????????????????????????????????????????????? | | ?????????????????????????????????????????????????? | | ?????????????????????????????????????????????????? | | ?????????????????????????????????????????????????? | | ?????????????????????????????????????????????????? | | ?????????????????????????????????????????????????? | | ?????????????????????????????????????????????????? | | ?????????????????????????????????????????????????? | +----------------------------------------------------+ Best States ------------- Heat Dissipation 77 Energy Generation 81 Energy Capacity 1140 Matter Stores 300 Matter Capacity 300 Sight Range 16 Robot Scan Range 16 Terrain Scan Density 10 ECM Strength 1 Jamming Range 16 Cloak Strength 9 Additional Mass Support 20 Armor Coverage 1400 Resistance: KI 20 Resistance: TH 25 Resistance: EX 25 Resistance: I 20 Utility Shielding 90 Point Defense Rating 480 Melee Speed Boost 50 Phase Shifting 20 Evasion (%) 91 Targeting Accuracy 30 Melee Accuracy 16 Core Analysis 12 Armor Integrity Analysis 50 Recoil Reduction 5 Offensive Hacking 39 Authchip Count 3 Item Schematics ----------------- Hacking Suite | -8/Storage | Hacked Imp. Utility Shielding | -8/Storage | Hacked Imp. Flight Unit | -8/Storage | Hacked Imp. Sensor Array | -8/Recycling | Hacked Imp. VTOL Module | -6/Factory | Scanalyzed Adv. Melee Analysis Suite | -6/Factory | Scanalyzed Mic. Nuclear Core | -6/Factory | Scanalyzed Cld. VTOL Module | -6/Factory | Hacked Cld. Cesium-ion Thruster | -5/Factory | Hacked Microactuators | -5/Factory | Hacked Adv. Hacking Suite | -5/Factory | Scanalyzed Adv. Plasma Cannon | -5/Factory | Scanalyzed Imp. Arc Thrower | -5/Zhirov | Free Exp. Optical Array | -5/Zhirov | Free Exp. Heat Sink | -5/Zhirov | Free Assault Drone Bay | -5/Zhirov | Free Nanoactuators | -3/Research | Hacked Cld. Nuclear Pulse Thruster | -3/Research | Hacked Weapon Mount | -3/Quarantine | Hacked Coolant Network | -2/Testing | Archive Exp. EM Shield | -2/Protoforge | Hacked Imp. KE Penetrator | -2/Protoforge | Archive Vibroblade | -2/Protoforge | Archive Robot Schematics ------------------ C-65 Expert | -2/Testing | Archive Fabricated ------------ Imp. VTOL Module | x1 | -6/Factory E-15 Imp | x2 | -6/Factory | Preloaded Cld. VTOL Module | x1 | -6/Factory | Authchip Cld. VTOL Module | x1 | -6/Factory | Authchip Cld. VTOL Module | x1 | -6/Factory Cld. Cesium-ion Thruster | x1 | -5/Factory | Authchip Cld. Cesium-ion Thruster | x1 | -5/Factory | Authchip Adv. Reaction Control System | x2 | -5/Factory | Preloaded Cld. Cesium-ion Thruster | x1 | -5/Factory | Authchip Cld. Cesium-ion Thruster | x1 | -4/Factory | Authchip Cld. Cesium-ion Thruster | x1 | -4/Armory | Authchip Cld. Cesium-ion Thruster | x1 | -4/Armory | Authchip Cld. Linear Gravjet | x1 | -2/Testing | Preloaded Weapon Mount | x2 | -2/Protoforge Nanoactuators | x2 | -2/Protoforge Cld. Nuclear Pulse Thruster | x1 | -2/Protoforge Repaired ---------- Arm. Treads | 63% | -8/Storage Hrd. Medium Armor Plating | 70% | -8/Storage Cld. VTOL Module | 21% | -5/Factory Imp. Medium Armor Plating | 71% | -5/Factory Imp. Cesium-ion Thruster | 48% | -5/Factory Imp. Cesium-ion Thruster | 48% | -5/Factory Cld. Cesium-ion Thruster | 66% | -5/Factory Adv. Sensor Array | 50% | -5/Factory Cld. Cesium-ion Thruster | 8% | -4/Factory | Broken Quantum Shading Machine | 33% | -3/Research Hrd. Medium Armor Plating | 1% | -3/Research Impulse Thruster Array | 31% | -2/Testing Studied --------- Lgt. Treads | -9/Materials | Hacked Arm. Treads | -8/Materials | Hacked Lgt. Nuclear Core | -8/Materials | Hacked Minigun | -8/Materials | Hacked Arm. Wheel | -6/Factory | Hacked Wheel | -6/Factory | Hacked Mic. Nuclear Core | -6/Factory | Hacked Field Propulsion Array | -4/Factory | Hacked Adv. Plasma Cannon | -4/Factory | Hacked Field Propulsion Drive | -3/Research | Hacked Impulse Thruster Array | -3/Research | Hacked Mic. Antimatter Reactor | -3/Research | Hacked Lgt. Quantum Reactor | -3/Research | Hacked Lgt. Antimatter Reactor | -3/Quarantine | Hacked Com. HERF Cannon | -2/Research | Hacked Alien Tech Used ----------------- Integrated Reactor Transdimensional Reconstructor Core Expander Integrated Dissipator Sigix Broadsword Subatomic Replicator Core Cannon Dimensional Node Initializer Concept Nanofilaments [Tensile] Modified Sigix Sheargun High-powered Transdimensional Reconstructor Achievements -------------- 100k Club 75k Club Anti-science Crusade Frienemies Low-level Research Martial Artist No Room For Error Speed Demon UFD MVP Worth The Wait Challenges ------------ None Game ------ Seed ReflexNeutronFlakker Manual? 0 Play Time 07:06:28 Cumulative 894.4 hours Start 2025.11.20 @ 23:28:41 End 2025.11.21 @ 23:02:53 Sessions 7 Manual Loads 0 Difficulty Rogue Special Mode None Game No. 756 Rogue 756 Adventurer 0 Explorer 0 Win Type 1 Total 48 Types 15/9/11/1/1/1/7/1/1/1 Lore% 88 Gallery% 88 Achievement% 63 Wizard Run 0 Options --------- Layout 0 ASCII 0 Keyboard 0 Movement Mouse Keybinds 1 Fullscreen 2 Font 24/Smallcaps Map View 76x50 Zoom Use 0% Tactical HUD 1 Map Filters NONE Filters NONE Steam 1 RUN: 71bb921f-c026-4c86-a4a1-5919438b8820